Cogmind - Beta 16.1 @@@ ROGUE MODE // 2026.04.19 @ 20:30:48 Player: szymekc Result: Establishing 0b11! Performance ------------- Evolutions (9) 4500 Regions Visited (33) 6600 Robots Destroyed (1122) 5610 Value Destroyed (71215) 71215 Prototype IDs (380) 7600 Alien Tech Used (7) 1400 Bonus (88438) 88438 TOTAL SCORE: 185363 Bonus ------- Triggered High Security 2000 High Alert Combat Kills 48175 Follower Combat Kills 4386 Hunted by Unchained 1000 Destroyed Unchained 1000 Network Hubs Disabled 800 Met Data Miner 300 Met Zhirov 300 Met Warlord at Base 500 MAIN.C Attacked Warlord 500 Warlord Defense Kills 3100 Built Enhanced Grunts 300 Met R17 at Cetus 500 Met R17 at Research 2000 Scanned by Researcher 500 Destroyed MAIN.C Guards 500 Met MAIN.C 5000 Destroyed MAIN.C Shell 5000 Destroyed MAIN.C 10000 Met Warlord at Command 2000 Win 3000 Friendly Fire -2423 Cogmind --------- Core Integrity 309/1600 Matter 37/300 Energy 403/420 System Corruption 30% Temperature Cool (11) Movement Walking (116) Location 0b11 Command Parts ------- > --- POWER (3) -------- Light Quantum Reactor Light Quantum Reactor Zero-point Reactor > --- PROPULSION (6) --- Enhanced Biometal Leg Centrium Leg Centrium Leg High-density Centrium Leg High-density Centrium Leg High-density Centrium Leg > --- UTILITY (12) ----- Concept Thermoelectric Network Concept Antigrav Storage Unit Spectral Analyzer Concept Weapon Articulator (fused) Experimental Core Analyzer Experimental Core Analyzer Advanced Weapon Cycler Heavy Regenerative Plating Graphene Brace Advanced Force Field Concept Impact Drone Bay (0/6) > --- WEAPON (4) ------- Cooled Nova Cannon Graviton Cannon Concept Heavy Railcannon > --- INVENTORY (25) --- Light Quantum Reactor Light Quantum Reactor Light Quantum Reactor Light Quantum Reactor Centrium Leg Experimental Heat Sink Experimental Heat Sink Experimental Energy Well (600) Experimental Energy Well (600) Concept Chromion Battery (800) Concept NT7 Matterbank (642) Experimental Targeting Computer Improved Force Booster Improved Cloaking Device Advanced Focal Shield Thermal Barrier Experimental Shock Absorption System AEGIS Remote Shield Advanced Point Defense System Concept Matter Streamer Compact HERF Cannon Compact HERF Cannon Compact HERF Cannon Peak State ------------ > --- POWER ------------ Experimental Antimatter Reactor Concept Zero-point Core Concept Zero-point Core > --- PROPULSION ------- Experimental VSS Leg Experimental VSS Leg Experimental Armored Exoskeleton > --- UTILITY ---------- Advanced Heat Sink Concept Thermoelectric Network Concept Antigrav Storage Unit Experimental Signal Interpreter Concept Weapon Articulator Concept Core Analysis Suite Concept Core Analysis Suite Thermal Barrier Concept Hardlight Director Crosscalibrator > --- WEAPON ----------- Concept Plasma Driver Concept Plasma Driver Concept Helical Railcannon Concept Helical Railcannon > --- INVENTORY -------- Quantum Reactor Quantum Reactor Experimental VSS Leg Experimental Armored Exoskeleton Concept Thermoelectric Network Concept Chromion Battery Concept NT7 Matterbank Improved Weapon Cycler Graphene Brace Advanced Force Field Concept Matter Streamer Concept Impact Drone Bay Concept Impact Drone Bay Transdimensional Reconstructor Transdimensional Reconstructor Concept Plasma Driver Concept Miniperforator Concept Helical Railcannon Concept Heavy Railcannon Concept EMP Blanket Launcher Advanced Micro-nuke Launcher [Rating: 283] Favorites ----------- Power Quantum Reactor Engine Cooled Deuterium Engine Power Core Concept Zero-point Core Reactor Quantum Reactor Propulsion Enhanced Biometal Leg Treads Light Treads Leg Enhanced Biometal Leg Wheel Subdweller Monowheel Hover Unit Cooled Gravmag System Utility Experimental Core Analyzer Device Concept Thermoelectric Network Storage High-capacity Storage Unit Processor Experimental Core Analyzer Hackware Hacking Suite Protection Layered Heavy Armor Plating Artifact Phase Armor Weapon KE Penetrator Energy Gun 01-MTF's Shockpuncher Energy Cannon Enhanced Nova Cannon Ballistic Gun KE Penetrator Ballistic Cannon Graviton Cannon Launcher Compact Tesla Bomb Launcher Special Weapon Mining Laser Impact Weapon Core Stripper Slashing Weapon Phasing Sabre Piercing Weapon Plasma Lance Build | -11 -10 -10 -8 -8 -7 -7 -7 -7 -7 -7 -6 -6 -6 -6 -6 -6 -5 -5 -5 -5 -4 -4 -4 -4 -4 -3 -3 -3 -3 -2 -2 -1 -1 ------- Run | Yrd Mat Sub Mat Sto Fac Was Fac Low Low Dat Pro Fac Ext Cet Arc Hub Fac Upp Upp Zhi Pro Fac Upp Upp War Pro Res Qua Frg Res Tes Acc Com Slots Evolved 18 | . . . 4 . 2 . . . . . . 2 . . . . 2 . . . . 2 . . . . 2 . . 2 . 2 . Power 2 | . . . . . . . . . . . . . . . . . 1 . . . . . . . . . 1 . . . . . . Propulsion 4 | . . . 2 . . . . . . . . 1 . . . . . . . . . . . . . . 1 . . . . . . Utility 10 | . . . 2 . 1 . . . . . . 1 . . . . 1 . . . . 1 . . . . . . . 2 . 2 . Weapon 2 | . . . . . 1 . . . . . . . . . . . . . . . . 1 . . . . . . . . . . . Parts Attached 496 | 8 5 6 8 22 29 . 12 . 3 . . 9 8 9 4 17 10 12 7 9 . 7 2 3 12 4 22 23 47 24 47 94 33 Power 75 | 1 . 1 2 2 4 . . . . . . . 3 1 . 3 1 2 2 1 . . 1 . 1 . 1 . 8 5 10 15 11 Engine 10 | 1 . 1 2 2 2 . . . . . . . 2 . . . . . . . . . . . . . . . . . . . . Core 7 | . . . . . 2 . . . . . . . 1 . . . . 1 1 . . . . . . . . . 2 . . . . Reactor 58 | . . . . . . . . . . . . . . 1 . 3 1 1 1 1 . . 1 . 1 . 1 . 6 5 10 15 11 Propulsion 88 | 2 . 3 2 10 7 . 3 . . . . 1 1 2 1 4 2 1 . 3 . 1 . . 3 . 2 2 7 2 7 18 4 Treads 16 | 2 . 1 . 9 . . . . . . . . . 2 . . . . . . . . . . . . . . . . 2 . . Leg 54 | . . . . . . . . . . . . . . . 1 4 2 1 . 3 . 1 . . 2 . 2 2 7 2 5 18 4 Wheel 4 | . . 2 2 . . . . . . . . . . . . . . . . . . . . . . . . . . . . . . Hover 14 | . . . . 1 7 . 3 . . . . 1 1 . . . . . . . . . . . 1 . . . . . . . . Flight . | . . . . . . . . . . . . . . . . . . . . . . . . . . . . . . . . . . Utility 200 | 2 2 2 2 2 12 . 5 . 1 . . 7 1 3 2 10 4 5 2 5 . 6 1 3 5 3 12 14 17 12 15 33 12 Device 111 | 2 . . . 1 4 . 1 . . . . 3 . 1 2 6 2 4 2 4 . 2 . 1 4 3 5 7 10 9 9 23 6 Storage 15 | . 2 . . . 2 . . . . . . . . . . 2 . . . . . . . . . . 2 1 1 . 1 3 1 Processor 28 | . . . . 1 1 . . . . . . 3 . . . 2 1 . . . . 2 . 1 1 . 3 . 3 2 5 2 1 Hackware 7 | . . . . . 2 . 2 . . . . 1 . . . . . . . . . 1 . . . . . 1 . . . . . Protection 38 | . . 2 2 . 3 . 2 . 1 . . . 1 2 . . 1 1 . 1 . 1 1 1 . . 2 4 3 1 . 5 4 Artifact 1 | . . . . . . . . . . . . . . . . . . . . . . . . . . . . 1 . . . . . Weapon 133 | 3 3 . 2 8 6 . 4 . 2 . . 1 3 3 1 . 3 4 3 . . . . . 3 1 7 7 15 5 15 28 6 Energy Gun 15 | 2 . . . 2 . . 1 . 1 . . . . . . . . . . . . . . . 1 . . . 2 . 1 5 . Energy Cannon 26 | . . . 1 . . . . . 1 . . . 2 . 1 . . . 1 . . . . . . . 1 2 2 2 4 6 3 Ballistic Gun 47 | 1 2 . 1 4 3 . . . . . . 1 . 3 . . 3 4 2 . . . . . 2 . 3 . 4 . 6 8 . Ballistic Cannon 24 | . . . . 1 . . . . . . . . . . . . . . . . . . . . . . 1 3 5 2 3 7 2 Launcher 12 | . . . . 1 1 . 1 . . . . . . . . . . . . . . . . . . 1 . 1 2 1 1 2 1 Special Weapon 2 | . 1 . . . . . . . . . . . . . . . . . . . . . . . . . 1 . . . . . . Impact Weapon 2 | . . . . . 1 . . . . . . . . . . . . . . . . . . . . . . 1 . . . . . Slashing Weapon 4 | . . . . . 1 . 2 . . . . . 1 . . . . . . . . . . . . . . . . . . . . Piercing Weapon 1 | . . . . . . . . . . . . . . . . . . . . . . . . . . . 1 . . . . . . Special Melee Weapon . | . . . . . . . . . . . . . . . . . . . . . . . . . . . . . . . . . . Unidentified Prototypes 88 | . . . . 4 6 . . . . . . 1 1 3 2 4 . 1 . 5 . 1 . 1 7 1 9 14 6 4 12 4 2 Corrupted Parts 6 | . . . . . . . . . . . . . . 1 . . . . . . . . . . . . . . . . . 1 4 System Corruption 29 | . . . . . . . . . . . . . . 8 . . . . . . . . . . . . . . . . . 1 20 Parts Lost 110 | . . 4 2 5 1 . 1 . 1 . . 2 . . . 2 . 5 2 . . 5 1 1 1 1 . 2 8 12 17 23 14 Power 16 | . . 1 . . . . . . . . . . . . . . . 1 . . . . . . . . . . . 2 4 5 3 Propulsion 12 | . . 2 . 3 . . . . . . . . . . . . . . . . . 1 1 . . . . . 1 . 2 2 . Utility 39 | . . 1 1 2 . . . . 1 . . . . . . . . 3 2 . . 2 . . . 1 . . 5 4 5 8 4 Weapon 43 | . . . 1 . 1 . 1 . . . . 2 . . . 2 . 1 . . . 2 . 1 1 . . 2 2 6 6 8 7 Highest Loss Streak 9 | . . 3 1 4 1 . 1 . 1 . . 2 . . . 1 . 2 1 . . 4 1 1 1 1 . 1 2 9 6 9 9 To Critical Strikes 1 | . . . . . . . . . . . . . . . . . . . . . . . . . . . . . . . 1 . . Average Backups 16 | 1 5 12 15 17 9 8 8 8 8 8 8 8 7 9 8 10 15 17 18 18 19 18 18 18 18 17 19 19 19 20 17 21 22 Power . | . 1 1 2 2 . . . . . . . . . . . . . . . 1 1 . . . . 1 . . . . . . 2 Propulsion 3 | . . 2 1 1 2 3 3 4 4 4 4 3 2 3 3 4 6 5 5 5 6 6 6 5 5 4 4 2 1 1 1 2 . Utility 7 | . . 4 3 1 1 1 1 . . . . 1 3 4 3 2 5 5 6 5 5 6 7 10 10 9 11 9 9 11 11 13 14 Weapon 4 | . 3 3 7 10 4 4 3 4 4 4 4 4 1 2 2 2 3 7 6 6 6 4 3 2 1 1 3 4 5 5 2 5 4 Tool/Special . | . . . . . . . . . . . . . . . . . . . . . . . . . . . . . . . . . . Unused Backups 88 | . 2 . . 6 11 . . . . . . 1 . . 1 5 1 2 . . . 1 1 1 2 . 4 3 11 3 5 19 9 Power 8 | . . . . 1 2 . . . . . . . . . . . . . . . . . . . . . . . 1 2 . . 2 Propulsion 20 | . . . . . 2 . . . . . . . . . 1 1 . . . . . 1 1 1 1 . . . 1 1 4 4 2 Utility 37 | . . . . 2 2 . . . . . . . . . . 4 1 . . . . . . . 1 . 1 3 6 . 1 11 5 Weapon 22 | . 2 . . 3 5 . . . . . . 1 . . . . . 2 . . . . . . . . 3 . 2 . . 4 . Tool/Special 1 | . . . . . . . . . . . . . . . . . . . . . . . . . . . . . 1 . . . . Average Slot Usage (%) 92 | . 100 99 96 98 97 100 97 88 90 86 89 92 98 89 85 86 99 99 99 99 100 99 98 100 95 91 90 87 86 85 80 88 94 Engine 2 | . 14 14 9 9 5 7 7 7 7 7 7 6 5 . . . . . . . . . . . . . . . . . . . . Reactor 6 | . . . . . . . . . . . . . . 2 6 6 11 6 5 8 11 10 10 10 6 5 7 8 7 7 9 11 11 Treads 3 | . 28 18 9 31 2 . . . . . . . . 10 13 12 . . . . . . . . . . . . . . . . . Leg 14 | . . . . . . . . . . . . . . . . 6 29 29 29 29 29 26 26 26 26 26 21 21 15 13 11 18 23 Hover 4 | . . . . . 26 30 30 30 30 30 30 33 33 11 5 1 . . . . . . . . . . . . . . . . . Device 15 | . 19 10 12 8 8 7 7 7 7 7 7 9 9 11 15 7 11 10 13 24 29 21 14 10 9 12 16 10 15 23 24 21 22 Storage 5 | . 8 14 9 9 6 7 7 7 7 7 7 6 6 6 6 6 5 5 5 5 5 5 5 5 5 5 4 4 4 4 4 4 5 Processor 14 | . . . . 3 14 15 15 15 15 15 15 19 20 14 13 18 17 17 15 9 5 10 15 19 21 21 20 21 18 12 12 12 10 Protection 4 | . . 3 11 14 4 7 7 7 5 7 7 . 2 6 3 5 4 5 4 . . . 5 5 5 2 . 1 2 2 . 4 7 Energy Gun 1 | . 10 . . . 3 7 5 3 5 . 2 5 . . . . . . . . . . . . . . . . 1 . . 1 . Energy Cannon 2 | . . . 2 . . . . . . 1 . . 9 4 . . 2 . . . 3 3 . . 1 4 3 . 3 4 3 7 7 Ballistic Gun 8 | . 15 24 13 17 14 7 5 . . . . . 6 14 20 17 9 13 16 14 6 12 14 16 15 11 13 6 6 . 2 . . Ballistic Cannon 2 | . . . . . . . . . . . . . . . . . . . . . . . . . . . . 5 5 11 5 5 4 Slashing Weapon 1 | . . . . . 2 7 6 7 7 7 7 5 1 . . . 3 2 . 2 4 3 3 3 2 . . . . . . . . Peak Build Rating 283 | 9 11 13 26 36 65 62 66 64 64 61 64 78 83 111 111 120 129 124 121 130 131 142 139 137 145 147 178 209 274 283 265 266 270 Average Rating 153 | 5 9 11 23 29 57 62 61 59 60 57 60 74 78 102 108 112 123 116 117 122 130 137 135 133 137 143 167 194 232 268 244 243 241 On Entrance 107 | . 9 10 13 26 29 62 62 57 61 61 57 64 74 82 109 110 108 118 116 117 130 131 132 136 133 145 142 176 196 264 224 245 245 Avg Prop Armor Cover (%) 6 | . . 11 7 10 . . . . . . . . . 1 1 3 . 6 5 4 . . . . . . . . . . . . 3 Naked Turns . | . . . . . . . . . . . . . . . . . . . . . . . . . . . . . . . . . . Heaviest Build 179 | 11 52 50 66 66 57 39 41 39 41 38 38 36 53 63 59 83 105 103 100 97 103 117 126 117 130 140 139 174 176 157 155 179 178 Greatest Support 190 | 40 40 40 60 80 60 53 53 43 42 38 56 49 62 160 160 160 146 141 118 150 150 150 150 148 148 145 170 170 171 154 162 190 190 Greatest Overweight (x) 3 | . 1 2 1 3 1 . 1 . . . . . . 1 . . . . 1 . . . . . . . . 1 1 1 2 1 1 Average Overweight (x) . | . . 1 . . . . . . . . . . . . . . . . . . . . . . . . . . . . . . . Largest Inventory Capacity 25 | 5 20 20 20 20 20 10 10 10 10 10 10 10 10 10 10 20 20 20 20 20 20 20 20 20 20 20 25 20 25 25 25 25 25 Average Capacity 19 | 5 13 15 20 20 11 10 10 10 10 10 10 10 10 10 10 12 20 20 20 20 20 20 20 20 20 20 20 20 22 25 25 25 25 Most Carried 25 | 3 10 17 19 20 20 9 10 10 9 10 10 10 10 10 10 15 20 20 20 20 20 20 20 20 20 20 20 20 25 25 25 25 25 Average Carried 18 | 1 5 13 17 19 10 9 9 9 9 9 9 9 8 9 9 11 16 18 19 19 20 19 19 19 19 18 19 19 21 24 21 24 23 Final Capacity 25 | 5 15 20 20 20 10 10 10 10 10 10 10 10 10 10 10 20 20 20 20 20 20 20 20 20 20 20 20 20 25 25 25 25 25 Final Carried 25 | 3 10 17 18 17 9 9 10 9 9 10 10 9 10 10 10 12 19 19 19 20 20 20 20 20 20 20 20 19 25 18 25 25 23 Class Distribution -------------------- 24% | Scavenger-Gunner 10% | Scavenger-Assassin 10% | Scout 9% | Scavenger-Mutant 9% | Scavenger-Skirmisher 8% | Gunner 7% | Mutant 7% | Scavenger-Tank 3% | Skirmisher 3% | Commander-Tank Dominant Class ---------------- Mutant | -10/Materials Mutant | -10/Subcaves Scavenger-Mutant | -8/Materials Commander-Mutant | -8/Storage Scout | -7/Factory Scout | -7/Waste Scout | -7/Factory Scout | -7/Lower Caves Scout | -7/Lower Caves Scout | -7/Data Miner Scout | -6/Proximity Caves Scout | -6/Factory Commander-Mutant | -6/Extension Commander-Tank | -6/Cetus Commander-Tank | -6/Archives Scavenger-Tank | -6/Hub_04(d) Scavenger-Assassin | -5/Factory Scavenger-Assassin | -5/Upper Caves Scavenger-Skirmisher | -5/Upper Caves Scavenger-Skirmisher | -5/Zhirov Scavenger-Mutant | -4/Proximity Caves Scavenger-Gunner | -4/Factory Scavenger-Assassin | -4/Upper Caves Scavenger-Assassin | -4/Upper Caves Scavenger-Gunner | -4/Warlord Skirmisher | -3/Proximity Caves Skirmisher | -3/Research Scavenger-Assassin | -3/Quarantine Gunner | -3/Protoforge Gunner | -2/Research Scavenger-Gunner | -2/Testing Scavenger-Gunner | -1/Access Scavenger-Gunner | -1/Command Resources | -11 -10 -10 -8 -8 -7 -7 -7 -7 -7 -7 -6 -6 -6 -6 -6 -6 -5 -5 -5 -5 -4 -4 -4 -4 -4 -3 -3 -3 -3 -2 -2 -1 -1 ----------- Run | Yrd Mat Sub Mat Sto Fac Was Fac Low Low Dat Pro Fac Ext Cet Arc Hub Fac Upp Upp Zhi Pro Fac Upp Upp War Pro Res Qua Frg Res Tes Acc Com Matter Collected 42833 | 325 138 274 222 936 1089 . 755 55 168 . 74 254 410 232 259 1077 400 837 731 239 . 226 663 446 1265 223 592 1376 4726 8187 4019 7412 5223 Remotely 9653 | . . . . . . . . . . . . . . . . . . . . . . . . . . . . . 467 3557 1454 2860 1315 Salvage Created 65966 | 153 559 279 162 980 1638 . 1370 105 121 . 170 502 1156 154 276 2482 674 1048 967 349 3 237 701 583 1768 141 508 1118 5594 11778 8574 9777 12039 Parts 2602 | 19 28 16 6 48 85 . 65 5 4 . 11 23 57 5 23 116 37 52 48 3 . 17 28 21 73 3 17 43 298 459 318 254 420 Haulers Intercepted 23 | . 2 . . 4 6 . 4 . . . . . . . . 2 . . . . . . . 1 . . 1 . . 3 . . . Recyclers Shooed 9 | . 1 . 1 1 1 . . . . . . 2 1 . . 1 . . . . . . . . . . . . . . . . 1 Parts Field Recycled . | . . . . . . . . . . . . . . . . . . . . . . . . . . . . . . . . . . Retrieved Matter . | . . . . . . . . . . . . . . . . . . . . . . . . . . . . . . . . . . Parts Self-Destructed 153 | . . 2 . . . . . 7 4 . 5 . . . . . . 48 34 2 . . 22 26 . 3 . . . . . . . Prevented . | . . . . . . . . . . . . . . . . . . . . . . . . . . . . . . . . . . Parts Restored 18 | . . . . . . . . . . . . 1 . . . . . . . . . . . . . . . . 12 5 . . . Broken 1 | . . . . . . . . . . . . 1 . . . . . . . . . . . . . . . . . . . . . Faulty 17 | . . . . . . . . . . . . . . . . . . . . . . . . . . . . . 12 5 . . . Kills | -11 -10 -10 -8 -8 -7 -7 -7 -7 -7 -7 -6 -6 -6 -6 -6 -6 -5 -5 -5 -5 -4 -4 -4 -4 -4 -3 -3 -3 -3 -2 -2 -1 -1 ------- Run | Yrd Mat Sub Mat Sto Fac Was Fac Low Low Dat Pro Fac Ext Cet Arc Hub Fac Upp Upp Zhi Pro Fac Upp Upp War Pro Res Qua Frg Res Tes Acc Com Combat Hostiles Destroyed 913 | . 11 7 2 12 16 . 20 3 2 . 10 3 18 2 . 24 8 20 23 . 2 4 9 13 24 7 5 11 80 163 110 168 136 Melee 5 | . . . . . 2 . . . . . 1 . . . . . . . . . . . . . . . . 1 . . . . 1 Guns 254 | . 11 7 2 12 7 . 6 . 1 . . 2 5 1 . 23 8 16 19 . . 3 9 5 19 2 3 . 21 . 50 22 . Cannons 417 | . . . . . . . . . . . . . 6 1 . 1 . . . . . . . . . 1 2 9 46 133 55 104 59 AOE 141 | . . . . . 7 . 11 3 1 . 9 1 4 . . . . 4 4 . 2 1 . 8 5 4 . . 4 19 . 33 21 Classes Destroyed 37 | 3 5 1 2 1 2 . . . 1 . 1 2 1 . . 1 . 1 . . . . 1 . 2 . 1 1 5 2 1 2 1 Worker 35 | 2 . . 1 . 3 . 8 . . . . . . . . 8 2 . . . . 1 . . . . . . . . 2 . 8 Builder 19 | . . . . 1 2 . 2 . . . . . 1 . . 2 . . . . . . . . . . . . 2 1 5 3 . Tunneler 8 | 4 . . . . 1 . 2 . . . . . . . . . . . . . . . . . . . . . . 1 . . . Hauler 23 | . 2 . . 4 6 . 4 . . . . . . . . 2 . . . . . . . 1 . . 1 . . 3 . . . Recycler 32 | 1 . . 1 2 6 . 3 . . . . 2 1 . . 4 1 . . . . . . . . . . . . 2 1 3 5 Carrier 6 | . . . . . . . . . . . . . . . . . . . . . . . . . . . . . . . . 5 1 Minesweeper 1 | . . . . . . . . . 1 . . . . . . . . . . . . . . . . . . . . . . . . Mechanic 32 | . . . . . . . . . . . . 1 . . . . . . . . . . . . . . . . . 3 6 13 9 Operator 17 | . 1 . . . 1 . 4 . . . . 1 1 . 5 1 1 . . . . . . . . . . 1 . . . . 1 Drone 10 | . . . . . . . . . . . 1 . . . . . . . . . 2 . . . . 2 . . 3 . 1 . 1 Watcher 17 | . 1 . . . 2 . . . . . . 1 2 1 . 2 . . . . . . . . . . . . . 1 3 1 3 Swarmer 98 | . 3 . . 2 5 . 8 3 . . 9 1 4 . . 2 . 9 14 . . . 4 8 3 . . . . 19 . 4 . Cutter 1 | . . . . . . . . . . . . . . . . . . . . . . . . . . . . . . . . . 1 Saboteur 25 | . . . . . . . . . . . . . . . . . . . . . . . . . . . . . . 2 7 9 7 Grunt 274 | . 8 . . 1 6 . 8 . 2 . . . 4 . . 5 4 7 1 . . . 4 5 13 3 . . 12 39 45 62 45 Brawler 33 | . . . . . . . . . . . . 1 . . . . . . 1 . . . . . . . . . 1 5 8 10 7 Duelist 34 | . . . . . 1 . . . . . . 1 . . . . . 1 . . . . . . . . . . 3 5 6 11 6 Protector 37 | . . . . . . . . . . . . . . . . 1 . . . . . . . . 2 . . . . 8 8 9 9 Researcher 5 | . . . . . . . . . . . . . . . . . . . . . . . . . . . . . 3 . 2 . . Sentry 65 | . . . 1 7 2 . 2 . . . . . 8 . . 4 . 1 3 . . 1 1 . . . . . 11 13 6 3 2 Demolisher 12 | . . . . . . . . . . . . . . . . . . . . . . . . . 3 . . . . 9 . . . Hunter 61 | . . . 1 1 . . . . . . . . . . . . . 1 . . . . . . 2 . . 3 4 17 10 11 11 Programmer 116 | . . . . . 2 . 2 . . . . . 1 . . 4 4 1 . . . 3 . . . 2 . . 20 21 12 25 19 Heavy 1 | . . . . . . . . . . . . . . . . . . . . . . . . . . . . . . . . 1 . Behemoth 5 | . . . . . . . . . . . . . 1 . . . . . . . . . . . . . . . . 1 . 1 2 Cetus Guard 2 | . . . . . . . . . . . . . . 2 . . . . . . . . . . . . . . . . . . . Quarantine Guard 7 | . . . . . . . . . . . . . . . . . . . . . . . . . . . . 7 . . . . . M Guard 2 | . . . . . . . . . . . . . . . . . . . . . . . . . . . . . . . . . 2 Enhanced Grunt 1 | . . . . . . . . . . . . . . . 1 . . . . . . . . . . . . . . . . . . Lightning 8 | . . . . . . . . . . . . . . . . 8 . . . . . . . . . . . . . . . . . Hotshot 8 | . . . . . . . . . . . . . . . . . . . . . . . . . . . . . 8 . . . . Decapitator 8 | . . . . . . . . . . . . . . . . . . . . . . . . . . . . . 8 . . . . Immortal 7 | . . . . . . . . . . . . . . . . . . . . . . . . . . . . . 7 . . . . Combat Programmer 2 | . . . . . . . . . . . . . . . . . . . . . . . . . . . . . . . . . 2 Investigator 7 | . . . . . . . . . . . . . . . . . . . . . . . . . . . . . . 1 2 3 1 Striker 35 | . . . . . . . . . . . . . . . . . . . . . . . . . . . 3 . . 11 2 9 10 Executioner 42 | . . . . . . . . . . . . . . . . . . . . . . . . . 1 . 2 . . 13 5 12 9 Alpha 7 2 | . . . . . . . . . . . . . . . . . . . . . . . . . . . . . 2 . . . . Fortress 1 | . . . . . . . . . . . . . . . . . . . . . . . . . . . . 1 . . . . . V-Series 1 | . . . . . . . . . . . . . . . . . . . . . . . . . . . . . 1 . . . . Protovariant X 1 | . . . . . . . . . . . . . . . . . . . . . . . . . . . . . . . 1 . . Subdweller 7 | . . 7 . . . . . . . . . . . . . . . . . . . . . . . . . . . . . . . Packrat 1 | . . . . . . . . . . . . . . . . . . . . . . . 1 . . . . . . . . . . Samaritan 3 | . . . . . . . . . . . . . . . . . . . . . . . 3 . . . . . . . . . . Tinkerer 1 | . . . . . . . . . . . . . . . . . . . . . . . . . . . . . 1 . . . . Thug 9 | . . . . . . . . . . . . . . . . . . . 4 . . . . . 3 . . . . 1 . . 1 Butcher 1 | . . . . . . . . . . . . . . . . . . . . . . . . . . . . . . . . . 1 Mutant 1 | . . . . . . . . . . . . . . . . . . 1 . . . . . . . . . . . . . . . Commander 1 | . . . . . . . . . . . . . . . . . . 1 . . . . . . . . . . . . . . . Troll 1 | . . . . . . . . . . . . . . . . . . . . . . . . . . . . . . . . . 1 Borebot 1 | . . . . . . . . . . . . . . . . . . . . . . . . . . . . . . 1 . . . Best Kill Streak 40 | 3 3 2 2 3 7 . 9 3 2 . 5 3 8 2 2 12 6 10 7 . 1 2 8 5 9 4 2 2 12 40 27 25 20 Combat Bots Only 37 | . 3 2 1 3 4 . 5 3 2 . 5 1 5 1 . 4 4 10 7 . 1 2 8 5 9 4 2 2 12 37 26 21 19 Max Kills in Single Turn 5 | 1 1 1 1 1 3 . 4 3 1 . 3 1 4 1 1 2 2 4 4 . 1 1 3 4 4 2 2 1 3 4 3 5 4 Gunslinging 1 | . . . . . . . . . . . . . . . . 1 . 1 . . . . 1 . . . . . . . . 1 . Exploded 4 | . . . . . 3 . 3 3 1 . 3 1 3 . . . . 4 4 . 1 1 . 4 4 1 . . 3 4 . 3 2 Melee 1 | . . . . . 1 . . . . . 1 . . . . . . . . . . . . . . . . 1 . . . . 1 Uniques/NPCs Destroyed 4 | . . . . 1 . . . . . . . . . . . . . . . . . . . . . . . . . . . 1 2 01-MTF (-8/Storage) BL-1NK (-1/Access) MAIN.C Shell (-1/Command) MAIN.C (-1/Command) Combat | -11 -10 -10 -8 -8 -7 -7 -7 -7 -7 -7 -6 -6 -6 -6 -6 -6 -5 -5 -5 -5 -4 -4 -4 -4 -4 -3 -3 -3 -3 -2 -2 -1 -1 -------- Run | Yrd Mat Sub Mat Sto Fac Was Fac Low Low Dat Pro Fac Ext Cet Arc Hub Fac Upp Upp Zhi Pro Fac Upp Upp War Pro Res Qua Frg Res Tes Acc Com Hostile Shots Fired 4840 | . 20 40 34 103 85 . 106 6 7 . 25 14 141 6 . 163 45 99 84 . . 55 24 40 88 51 . 84 400 683 881 831 725 Missed 1842 | . 5 5 15 24 34 . 52 3 4 . 13 9 92 2 . 55 18 42 31 . . 8 6 15 43 18 . 30 121 269 371 296 261 Intercepted 2 | . . . . . . . . . . . . . . . . . . . . . . . . . . . . . . . . . 2 Deflected 5 | . . . . . . . . . . . . . . . . . . . . . . . . . . . . . . . . 5 . Hits 2998 | . 15 35 19 79 51 . 54 3 3 . 12 5 49 4 . 108 27 57 53 . . 47 18 25 45 33 . 54 279 414 510 535 464 Melee 60 | . . . . . . . . . . . . . . . . . . . 1 . . . . . 1 . . . 19 1 9 17 12 Projectile 2938 | . 15 35 19 79 51 . 54 3 3 . 12 5 49 4 . 108 27 57 52 . . 47 18 25 44 33 . 54 260 413 501 518 452 AOE 26 | . . . . . . . . . . . . . . . . 2 . . . . . . . . 4 . . . 3 6 3 2 6 Critical Strikes 158 | . . . . 4 . . 3 . . . . . . . . 6 1 2 1 . . 4 1 . 2 2 . 6 31 22 27 20 26 Actively Blocked 47 | . . . . . . . . . . . . . . . . . . . . . . . . . . . . . 14 9 13 1 10 Part Disruptions 33 | . . . . 9 . . 1 . . . . . . . . 1 . . . . . . . . . . . . 2 4 1 2 13 Actively Blocked 5 | . . . . . . . . . . . . . . . . . . . . . . . . . . . . . . . . . 5 Damage Taken 42611 | . 136 933 249 1393 662 . 869 69 51 . 146 225 423 131 . 1754 212 1186 1134 . . 1181 191 254 842 353 39 1049 3941 4437 4526 8826 7399 Core 3807 | . 28 204 20 40 96 . 185 . . . . . 76 . . 93 22 138 226 . . 97 9 22 74 47 . 125 207 455 352 535 756 Absorbed by Shields 21308 | . . . . . . . . . . . . . 24 26 . . . . . . . 192 144 200 384 318 43 972 2439 4477 4826 2400 4863 Reduced by Siege Mode 8 | . . . . . . . . . . . . . . . . 8 . . . . . . . . . . . . . . . . . Redirected to Core 82 | . . . . . . . . . . . . . . . . . . . . . . . . . . . . 82 . . . . . Redirected to Shielding 320 | . . . . . . . . . . . . . . . . . . . . . . . . . . . . . 18 . . . 302 Ignored by Resistances 12817 | . . . . . . . . . . . . . . . . 824 312 22 . . . . . . . . . . 2404 2114 2642 2808 1691 Regen/Repaired (Parts) 661 | . . . . . 75 . . . . . . . . . . . . . . . . . . . 384 . . . . . . . 202 Core Remaining (%) 59 | 100 . 7 . 89 . . . . . . 59 . . . . 80 . . . . 61 . . . . 78 . . 68 . 36 . 19 Volleys Fired 1882 | 35 31 41 22 80 59 . 62 1 8 . 5 14 54 17 11 74 22 36 46 4 5 28 16 20 69 26 21 43 195 159 162 265 251 Largest 4 | 1 2 2 2 2 3 . 3 1 1 . 1 1 3 3 3 3 3 3 3 1 1 4 4 4 4 3 4 4 4 4 4 4 4 Hottest 420 | 20 100 100 68 50 100 . 100 45 90 . 45 50 148 160 105 125 99 105 105 35 90 140 138 138 136 160 188 159 420 420 368 316 418 Shots Fired 4590 | 35 60 76 40 155 121 . 88 1 8 . 5 14 98 41 33 195 60 105 136 4 5 64 60 53 217 30 39 78 477 529 491 631 641 Gun 2106 | 35 58 70 36 153 116 . 81 . 1 . . 13 30 23 33 190 57 104 135 4 . 52 58 47 215 6 20 35 212 . 147 175 . Cannon 2296 | . . . 4 2 . . . . 5 . . . 66 18 . 5 3 . . . 3 12 2 3 . 20 18 43 247 511 343 456 535 Launcher 178 | . . . . . 4 . 7 1 2 . 5 1 2 . . . . 1 1 . 2 . . 3 2 4 . . 18 18 1 . 106 Special 10 | . 2 6 . . 1 . . . . . . . . . . . . . . . . . . . . . 1 . . . . . . Kinetic 3244 | 35 26 70 36 154 87 . 43 . . . . . 30 23 33 190 57 104 135 4 . 52 58 47 215 6 22 74 267 410 320 495 251 Thermal 940 | . 2 6 4 . 1 . . . 5 . . . 51 18 . 5 3 . . . 3 12 2 3 . 20 16 4 151 101 170 130 233 Explosive 45 | . . . . . 4 . 7 1 2 . 5 1 2 . . . . 1 1 . 2 . . 3 2 4 . . 1 9 . . . Electromagnetic 359 | . 32 . . 1 29 . 38 . 1 . . 13 15 . . . . . . . . . . . . . . . 58 9 . 6 157 Robot Hit Streak 55 | 10 10 15 8 13 7 . 9 . 5 . 3 4 15 7 4 17 24 20 38 6 . 19 8 11 34 5 12 12 26 23 24 55 41 Robot Miss Streak 9 | 3 3 1 2 4 5 . 9 . 1 . 4 6 3 2 8 4 3 2 4 . . 2 3 4 2 2 1 6 5 8 5 2 3 Penetration Max 3 | . . . . . . . . . . . . . . 1 1 1 1 1 1 . . . 2 2 2 2 1 . 2 3 3 3 1 Secondary Targets 39 | . 1 . . 1 . . . . . . . . . . . 3 4 5 5 . . . 3 3 3 . . . 4 . 1 6 . Max Gunslinging Chain 2 | . 1 . . 1 . . . . . . . . . . . 1 1 1 1 . . . 1 1 1 . . . 1 . 1 2 . Shots Hit Robots 2910 | 24 40 62 26 104 81 . 76 1 4 . 4 17 67 28 14 135 50 88 99 9 . 32 34 39 149 9 17 48 238 311 296 418 390 Core Hits 2231 | 12 20 14 7 37 50 . 57 5 5 . 20 15 47 13 10 82 24 39 47 5 2 12 27 42 123 13 8 24 184 403 241 282 361 Critical Kills 221 | . . . . . 2 . . . . . . . 1 1 1 18 . 1 2 1 . 3 4 3 12 2 . 9 12 76 62 4 7 Critical Parts Destroyed 234 | . . . . . 1 . 1 . . . . . . 1 2 18 2 3 9 1 . 2 4 6 26 2 3 9 13 78 49 4 . Critical Strikes 536 | . . . . . 3 . 3 . . . . 1 1 2 3 36 2 6 11 2 . 6 9 10 42 4 3 18 36 172 120 35 11 Burn 1 | . . . . . . . . . . . . . . . . . . . . . . . . . . . . . . . 1 . . Meltdown 22 | . . . . . . . . . . . . . 1 . . . . . . . . . . . . . . . 2 2 6 4 7 Destroy 465 | . . . . . 3 . 1 . . . . . . 2 3 36 2 4 11 2 . 6 9 9 42 4 3 18 30 167 109 4 . Blast 41 | . . . . . . . . . . . . . . . . . . . . . . . . . . . . . 3 3 4 27 4 Corrupt 2 | . . . . . . . 1 . . . . . . . . . . . . . . . . . . . . . 1 . . . . Sever 5 | . . . . . . . 1 . . . . 1 . . . . . 2 . . . . . 1 . . . . . . . . . Melee Attacks 170 | . . . . . 15 . 28 1 4 . 3 16 1 4 . 2 11 13 3 9 6 6 10 18 . . . 20 . . . . . Kinetic 6 | . . . . . . . . . . . . . . . . . . . . . . . . . . . . 6 . . . . . Impact . | . . . . . . . . . . . . . . . . . . . . . . . . . . . . . . . . . . Slashing 150 | . . . . . 15 . 28 1 4 . 3 16 1 4 . 2 11 13 3 9 6 6 10 18 . . . . . . . . . Piercing 14 | . . . . . . . . . . . . . . . . . . . . . . . . . . . . 14 . . . . . Sneak Attacks 51 | . . . . . 12 . 13 . 1 . . 2 1 . . 1 2 9 . . . 1 7 2 . . . . . . . . . Combat Hostiles 1 | . . . . . 1 . . . . . . . . . . . . . . . . . . . . . . . . . . . . Follow-up Attacks . | . . . . . . . . . . . . . . . . . . . . . . . . . . . . . . . . . . Damage Inflicted 172164 | 207 679 935 381 1774 3000 . 4128 221 446 . 709 952 2217 864 448 4338 1735 2992 2647 422 108 693 1235 1666 3904 1363 397 1047 13844 25164 16562 45115 31971 Guns 35398 | 207 634 935 319 1763 1580 . 1448 . 31 . . 241 490 521 448 4040 1486 2050 2346 30 . 225 640 500 2677 75 274 258 4963 . 2682 4535 . Cannons 87263 | . . . 62 . . . . . . . . . 1266 343 . 127 . . . . . . . . . 192 123 527 7777 18566 13398 26539 18343 Explosions 42874 | . 32 . . . 586 . 1362 119 212 . 538 178 377 . . . . 195 301 . 108 320 . 722 1227 1096 . . 1052 6413 369 14039 13628 Melee 6145 | . . . . . 834 . 1318 102 203 . 171 533 84 . . 102 210 747 . 392 . 148 595 444 . . . 262 . . . . . Ramming 484 | . 13 . . 11 . . . . . . . . . . . 69 39 . . . . . . . . . . . 52 185 113 2 . Kinetic 82053 | 207 359 935 319 1763 773 . 444 . . . . . 490 521 448 4040 1486 2050 2346 30 . 225 640 500 2677 75 325 956 7224 14027 9588 20012 9593 Thermal 54514 | . 32 . 62 . 76 . 630 . . . . 66 980 343 . 127 . . . . . 288 . . . 289 72 38 4923 5230 6492 24561 10305 Explosive 9762 | . . . . . 510 . 732 119 212 . 538 112 342 . . . . 195 301 . 108 . . 722 1227 999 . . 129 2960 369 187 . Electromagnetic 19415 | . 275 . . . 807 . 1004 . 31 . . 241 321 . . . . . . . . 32 . . . . . . 1516 2762 . 353 12073 Impact . | . . . . . . . . . . . . . . . . . . . . . . . . . . . . . . . . . . Slashing 5883 | . . . . . 834 . 1318 102 203 . 171 533 84 . . 102 210 747 . 392 . 148 595 444 . . . . . . . . . Piercing 53 | . . . . . . . . . . . . . . . . . . . . . . . . . . . . 53 . . . . . Highest Corruption 46 | . . . . 8 2 5 9 4 4 4 4 . . 8 8 8 2 . . . . 1 1 1 1 1 2 3 38 16 46 13 35 Average Corruption 11 | . . . . 6 1 5 6 4 4 4 4 . . 8 5 2 1 . . . . 1 1 1 1 1 2 2 20 4 29 10 20 Corruption Purged 58 | . . . . . 3 . 5 . . . . . . . 8 . 2 . . . . . . . . . . . . 5 . 5 30 Corruption Blocked . | . . . . . . . . . . . . . . . . . . . . . . . . . . . . . . . . . . Effects 793 | . . . . 4 5 . 37 2 5 1 5 . . 3 9 27 3 . . . . 2 9 7 . 5 12 26 151 26 125 172 157 Message Errors 175 | . . . . . 3 . 11 . 3 . . . . 1 1 9 1 . . . . 1 2 1 . 2 3 1 32 2 21 51 30 Matter Fused 161 | . . . . 2 1 . 9 . 1 . 1 . . 1 4 9 2 . . . . . 2 2 . 1 2 8 29 7 23 31 26 Heat Flow Errors 97 | . . . . . . . 4 2 . . . . . . . 2 . . . . . 1 2 . . . 1 5 19 . 15 22 24 Energy Discharges 88 | . . . . 1 1 . 2 . . . 2 . . . 2 4 . . . . . . . 2 . 1 3 3 13 5 13 19 17 Parts Rejected 11 | . . . . . . . 2 . . . . . . . . . . . . . . . . . . . . 1 2 1 1 2 2 Parts Fused 14 | . . . . . . . . . . . . . . . . . . . . . . . . 1 . . . 1 1 3 1 5 2 Data Loss (minor) 75 | . . . . 1 . . 5 . . 1 . . . 1 1 2 . . . . . . . 1 . . 2 5 15 . 8 20 13 Data Loss (major) 32 | . . . . . . . 1 . . . 1 . . . 1 . . . . . . . 1 . . . . 1 7 3 3 7 7 Misfires 25 | . . . . . . . 2 . . . . . . . . . . . . . . . 2 . . . . . 7 . 4 5 5 Alerts 23 | . . . . . . . . . 1 . 1 . . . . 1 . . . . . . . . . 1 . 1 4 . 6 5 3 Misdirections 11 | . . . . . . . . . . . . . . . . . . . . . . . . . . . . . 1 . 4 . 6 Weapon Failures 81 | . . . . . . . 1 . . . . . . . . . . . . . . . . . . . 1 . 21 5 26 5 22 Overload Shots 5 | . . . . . . . . . 2 . . . . . . . . . . . . . . . . . . . . . . . 3 Overflow Damage 8694 | . . . . . 167 . 305 67 97 . 98 65 21 . . 28 . 10 . 169 . 90 44 40 . 76 . 15 403 802 440 5151 606 Projectiles 4834 | . . . . . . . . . . . . . 21 . . . . . . . . . . . . . . . 403 481 390 3108 431 Explosions 2686 | . . . . . 9 . 53 . . . 21 . . . . . . . . . . 90 . . . 76 . . . 219 . 2043 175 Melee 1174 | . . . . . 158 . 252 67 97 . 77 65 . . . 28 . 10 . 169 . . 44 40 . . . 15 . 102 50 . . Knockbacks 236 | . . . . . . . . . . . . . . . . 1 . . . . . . . . . . . . 15 54 49 82 35 Impact 3 | . . . . . . . . . . . . . . . . 1 . . . . . . . . . . . . . 2 . . . Kinetic 206 | . . . . . . . . . . . . . . . . . . . . . . . . . . . . . 13 49 39 71 34 Secondary 27 | . . . . . . . . . . . . . . . . . . . . . . . . . . . . . 2 3 10 11 1 Self-Inflicted Damage 1104 | . . . . . 29 . 148 21 . . 23 40 10 . . . . . . . . 22 . 20 9 . . . 322 204 . 92 164 Shots 58 | . . . . . 1 . 6 1 . . 1 2 1 . . . . . . . . 1 . 1 1 . . . 31 1 . 1 10 Rammed 15 | . 5 . . 5 . . . . . . . . . . . 5 . . . . . . . . . . . . . . . . . Targets Rammed 30 | . 5 . . 5 . . . . . . . . . . . 7 3 . . . . . . . . . . . 3 4 2 1 . Kicked 14 | . . . . . . . . . . . . . . . . 1 3 . . . . . . . . . . . 3 4 2 1 . Crushed 1 | . . . . . . . . . . . . . . . . 1 . . . . . . . . . . . . . . . . . Highest Temperature 352 | . 72 . 96 176 258 . 258 224 56 . . 8 217 201 . 288 239 322 37 . . 258 283 99 8 44 145 238 252 253 352 203 203 Average Temperature 138 | . 18 . 33 36 51 . 60 99 33 . . 6 62 85 . 75 94 140 18 . . 43 104 37 6 17 39 82 92 137 137 166 123 Received Heat Transfer 3837 | . 36 153 36 189 171 . 159 9 27 . 6 . 116 . . 207 54 270 180 . . 319 42 49 18 85 . 16 287 16 260 776 356 Thermoelectric Energy+ 174004 | . . . . . . . . . . . . . . . . . . . . . . . . . . . . . 806 4742 3931 157622 6903 Effects 36 | . . . . . . . . . . . . . . . . 1 . . . . . . . . . . . 3 . 7 10 15 . Energy Bleed 11 | . . . . . . . . . . . . . . . . 1 . . . . . . . . . . . . . 3 2 5 . Interference 25 | . . . . . . . . . . . . . . . . . . . . . . . . . . . . 3 . 4 8 10 . Siege Activations 2 | . . . . . . . . . . . . . . . . 2 . . . . . . . . . . . . . . . . . Total Turns 59 | . . . . . . . . . . . . . . . . 59 . . . . . . . . . . . . . . . . . Longest Duration 40 | . . . . . . . . . . . . . . . . 40 . . . . . . . . . . . . . . . . . Martial Activations . | . . . . . . . . . . . . . . . . . . . . . . . . . . . . . . . . . . Shielding Activations 2 | . . . . . . . . . . . . . . . . . . . . . . . . . . . . . . . . 2 . Total Turns 59 | . . . . . . . . . . . . . . . . . . . . . . . . . . . . . . . . 59 . Longest Duration 34 | . . . . . . . . . . . . . . . . . . . . . . . . . . . . . . . . 34 . Robots Disrupted 6 | . . . . . 1 . 1 . . . . 1 . . . . . . . . . 1 . . . . . . . . . . 2 Combat Hostiles 5 | . . . . . 1 . 1 . . . . 1 . . . . . . . . . 1 . . . . . . . . . . 1 Robots Corrupted 78 | . 1 . . . . . 4 . . . . . 2 . . . . . . . . . . . . . . . 7 11 . 1 52 Combat Hostiles 70 | . . . . . . . 3 . . . . . 2 . . . . . . . . . . . . . . . 7 9 . 1 48 Parts Fried 214 | . 2 . . . 1 . 12 . . . . 2 2 . . 2 . . . . . . . . 4 . . . 10 26 4 4 145 Impact Corruptions 10 | . . . . . . . . . . . . . . . . . . . . . . . . . . . . . 1 3 3 3 . Robots Melted 32 | . . . . . . . . . . . . . 1 . . . . . . . . . . . . . . . 2 2 6 12 9 Combat Hostiles 25 | . . . . . . . . . . . . . 1 . . . . . . . . . . . . . . . 2 2 5 8 7 Parts Melted 63 | . . 1 . . . . . . . . . . 1 . . 1 . . . . . . . . 1 . 3 1 4 2 5 30 14 Heat Transferred 35492 | . . . 111 . 100 . 450 . . . . . 1362 509 . . . . . . . 150 . . . 50 . 37 2961 3420 4020 14930 7392 Parts Sabotaged 21 | . . . . . . . . . . . . . . . . . . . . . . . . . . . . . 3 2 4 9 3 Parts Stolen . | . . . . . . . . . . . . . . . . . . . . . . . . . . . . . . . . . . Parts Stripped 18 | . . . . . . . . . . . . . . . . . . . . . . . . . . . . 18 . . . . . Power Chain Reactions 31 | . 1 . . . 2 . 3 . . . . 1 1 . . . . . . . . . . . . 1 . . 2 3 . . 17 Alert | -11 -10 -10 -8 -8 -7 -7 -7 -7 -7 -7 -6 -6 -6 -6 -6 -6 -5 -5 -5 -5 -4 -4 -4 -4 -4 -3 -3 -3 -3 -2 -2 -1 -1 ------- Run | Yrd Mat Sub Mat Sto Fac Was Fac Low Low Dat Pro Fac Ext Cet Arc Hub Fac Upp Upp Zhi Pro Fac Upp Upp War Pro Res Qua Frg Res Tes Acc Com Maximum Alert Level 5 | . . . . 1 2 1 3 . . . . . 2 2 1 2 1 . . . . 2 . . . . . . 5 5 5 5 5 Low Security (%) 38 | 100 100 . 100 48 74 . 33 . . . . 100 50 . 15 73 94 . . . . 57 . . . . 100 100 20 . . . . Level 1 8 | . . . . 51 1 100 6 . . . . . 33 5 84 24 5 . . . . 40 . . . . . . 7 . . . . Level 2 7 | . . . . . 24 . 20 . . . . . 15 94 . 2 . . . . . 2 . . . . . . 27 . . . . Level 3 3 | . . . . . . . 39 . . . . . . . . . . . . . . . . . . . . . 14 . . . . Level 4 3 | . . . . . . . . . . . . . . . . . . . . . . . . . . . . . 22 21 . . . Level 5 5 | . . . . . . . . . . . . . . . . . . . . . . . . . . . . . 8 . 18 13 10 High Security 33 | . . . . . . . . . . . . . . . . . . . . . . . . . . . . . . 78 81 86 89 Max Security . | . . . . . . . . . . . . . . . . . . . . . . . . . . . . . . . . . . Sterilizations 2 | . . . . . . . . . . . . . . . . . . . . . . . . . . . . . . . 1 1 . Peak Influence 9916 | 10 167 . 30 350 621 216 910 . . . . 188 586 558 371 453 221 . . . . 401 . . . . 150 57 2400 6045 7001 9621 9916 Initial 6156 | . . . . 1 109 216 144 . . . . 132 91 314 192 56 221 . . . . . . . . . 150 22 13 1349 3389 4200 6156 Average 3022 | 2 62 . 4 192 180 213 495 . . . . 136 234 475 270 156 54 . . . . 141 . . . . 26 28 758 3176 5609 8313 8694 Influence Increases 33588 | 35 400 . 70 874 1288 . 1286 105 50 . 285 274 1025 358 261 1295 322 470 510 10 10 529 230 300 540 205 342 502 2993 4967 4002 6005 4045 Destroy 0b10 Robot/C 19000 | . 220 . 40 360 400 . 400 60 40 . 180 60 520 160 80 600 160 400 380 . . 80 180 260 440 100 100 220 1600 3140 2460 3700 2660 Destroy 0b10 Robot/NC 1240 | 35 20 . 10 40 125 . 115 5 10 . 10 25 30 10 25 105 20 . . 10 10 5 . 5 10 10 5 5 35 95 130 150 185 Destroy Leader 2876 | . 46 . 20 170 90 . 88 10 . . 20 2 56 . . 174 30 40 10 . . 30 20 20 . 20 32 70 190 468 296 574 400 Allied During Kill 1225 | . . . . 233 17 . . . . . . . 326 170 98 186 . . . . . . . . . . . . . 1 96 81 17 Successful Hack 612 | . 48 . . 40 26 . 75 . . . . 12 . . . 14 43 . . . . 67 . . . . 12 65 9 . 24 75 102 Select Force Hacks 80 | . . . . . 30 . . . . . . . . . . 50 . . . . . . . . . . . . . . . . . Disable Machine 2025 | . 15 . . 30 240 . 285 . . . . 15 15 . 45 105 30 . . . . 255 . . . . 15 120 375 180 150 75 75 Anti-Garrison Action 500 | . . . . . . . . . . . . . . . . . . . . . . . . . . . . . 200 150 . 150 . Destroy Structure 3945 | . 6 . . 1 60 . 158 . . . . 25 48 18 13 61 24 . . . . 92 . . . . 28 22 524 828 576 1050 411 Advance Influence 150 | . . . . . . . . . . . . . . . . . . . . . . . . . . . 150 . . . . . . Partial Spotted 165 | . . . . . 105 . 30 . . . . . 15 . . . . . . . . . . . . . . . . . . 15 . Lose Combat Pursuer 1770 | . 45 . . . 195 . 135 30 . . 75 135 15 . . . 15 30 120 . . . 30 15 90 75 . . 60 105 270 135 195 Influence Decreases 23657 | 35 332 68 65 639 909 413 582 447 239 379 75 296 651 438 580 1005 729 516 268 252 10 231 422 304 270 577 301 519 618 1340 3027 3385 3735 Entered New Map 13359 | . . 33 . 4 131 403 62 337 109 379 . 78 97 248 290 107 232 18 . 242 . . 111 21 102 372 . 19 11 1050 2637 2801 3465 Time Decay 8042 | 35 332 35 65 405 564 10 510 110 120 . 75 198 374 170 270 604 278 458 248 10 10 181 301 273 158 195 301 471 527 170 180 334 70 Lost Part 1017 | . . . . 50 10 . 10 . 10 . . 20 . . . 20 . 40 20 . . 50 10 10 10 10 . 7 80 120 170 230 140 Lost Ally 727 | . . . . 180 20 . . . . . . . 180 20 20 177 10 . . . . . . . . . . . . . 40 20 60 Purge Threat 512 | . . . . . 184 . . . . . . . . . . 97 209 . . . . . . . . . . 22 . . . . . Squads Dispatched 215 | . . . . 3 16 . 13 . . . . 3 2 . . 12 4 . . . . 3 . . . . 6 2 19 . 44 48 40 Investigation 27 | . . . . 1 7 . 5 . . . . 3 1 . . 1 . . . . . 1 . . . . 3 1 3 . . . 1 Extermination 27 | . . . . . 5 . 5 . . . . . . . . 5 2 . . . . 2 . . . . . . 6 . 1 1 . Reinforcement 27 | . . . . 1 3 . 2 . . . . . 1 . . 3 2 . . . . . . . . . 3 1 2 . 2 4 3 Assault 124 | . . . . . 1 . 1 . . . . . . . . . . . . . . . . . . . . . 8 . 35 43 36 Garrison 10 | . . . . 1 . . . . . . . . . . . 3 . . . . . . . . . . . . . . 6 . . Intercept . | . . . . . . . . . . . . . . . . . . . . . . . . . . . . . . . . . . Searches Triggered . | . . . . . . . . . . . . . . . . . . . . . . . . . . . . . . . . . . Unchained Authorized 3 | . . . . . . . . . . . . . . . . . . . . . . 1 . . . . . 1 . . . 1 . Data Miner Redirects 7 | . . . . . . . . . . . . . . . . . . . . . . . . . . . . . 3 . 2 2 . Construction Impeded 3 | . . . . . . . . . . . . . . . . 1 . . . . . . . . . . . . 1 . . 1 . Haulers Reinforced 4 | . . . . . . . 2 . . . . . . . . . . . . . . . . . . . 2 . . . . . . Active Scanning Responses . | . . . . . . . . . . . . . . . . . . . . . . . . . . . . . . . . . . Cargo Convoy Interrupts . | . . . . . . . . . . . . . . . . . . . . . . . . . . . . . . . . . . Stealth | -11 -10 -10 -8 -8 -7 -7 -7 -7 -7 -7 -6 -6 -6 -6 -6 -6 -5 -5 -5 -5 -4 -4 -4 -4 -4 -3 -3 -3 -3 -2 -2 -1 -1 --------- Run | Yrd Mat Sub Mat Sto Fac Was Fac Low Low Dat Pro Fac Ext Cet Arc Hub Fac Upp Upp Zhi Pro Fac Upp Upp War Pro Res Qua Frg Res Tes Acc Com Distress Signals 57 | . 3 . . 1 1 . 3 . . . . 1 4 1 . 3 1 . . . . . . . . . 6 . . 14 1 5 13 Communications Jammed 138 | . . . . . . . . . . . . . . . . . . . . . 2 . . . . . 1 . . 33 91 11 . Distress Signals 135 | . . . . . . . . . . . . . . . . . . . . . . . . . . . 1 . . 33 90 11 . Times Spotted 1541 | . 22 8 5 22 43 5 47 5 7 . 11 19 31 10 5 44 12 22 31 . 2 5 8 14 110 13 8 13 91 243 210 234 241 Peak Tracking Total 27 | . 4 2 4 5 9 5 5 3 5 . 6 10 5 5 1 7 5 13 8 . 1 3 7 5 18 4 2 3 11 20 27 16 22 Tactical Retreats 68 | . 2 . . . 5 . 6 1 . . 3 2 1 . . . 1 1 6 . . . 1 1 1 2 . . 3 6 9 8 9 Traps | -11 -10 -10 -8 -8 -7 -7 -7 -7 -7 -7 -6 -6 -6 -6 -6 -6 -5 -5 -5 -5 -4 -4 -4 -4 -4 -3 -3 -3 -3 -2 -2 -1 -1 ------- Run | Yrd Mat Sub Mat Sto Fac Was Fac Low Low Dat Pro Fac Ext Cet Arc Hub Fac Upp Upp Zhi Pro Fac Upp Upp War Pro Res Qua Frg Res Tes Acc Com Traps Triggered 53 | . . 3 . . 8 . 8 . . . . 3 2 . . . . . . . . . . . . . 1 2 13 . 1 7 5 Indirectly 3 | . . . . . . . . . . . . . . . . . . . . . . . . . . . . . . . . . 3 Trap Hack Attempts . | . . . . . . . . . . . . . . . . . . . . . . . . . . . . . . . . . . Triggered . | . . . . . . . . . . . . . . . . . . . . . . . . . . . . . . . . . . Disarmed . | . . . . . . . . . . . . . . . . . . . . . . . . . . . . . . . . . . Reprogrammed . | . . . . . . . . . . . . . . . . . . . . . . . . . . . . . . . . . . Reused 1 | . . . . 1 . . . . . . . . . . . . . . . . . . . . . . . . . . . . . Traps Extracted . | . . . . . . . . . . . . . . . . . . . . . . . . . . . . . . . . . . Installed 1 | . . . . 1 . . . . . . . . . . . . . . . . . . . . . . . . . . . . . Triggered . | . . . . . . . . . . . . . . . . . . . . . . . . . . . . . . . . . . Most Traps Carried 1 | . . 1 1 1 . . . . . . . . . . . . . . . . . . . . . . . . . . . . . Machines | -11 -10 -10 -8 -8 -7 -7 -7 -7 -7 -7 -6 -6 -6 -6 -6 -6 -5 -5 -5 -5 -4 -4 -4 -4 -4 -3 -3 -3 -3 -2 -2 -1 -1 ---------- Run | Yrd Mat Sub Mat Sto Fac Was Fac Low Low Dat Pro Fac Ext Cet Arc Hub Fac Upp Upp Zhi Pro Fac Upp Upp War Pro Res Qua Frg Res Tes Acc Com Machines Disabled 170 | . 1 1 . 2 16 . 19 . . . . 1 1 . 3 7 2 3 5 2 . 17 . . . . 1 8 40 13 14 9 5 Max in Single Turn 10 | . 1 1 . 1 7 . 9 . . . . 1 1 . 2 1 1 1 1 1 . 10 . . . . 1 1 3 2 2 2 1 Garrison Access 9 | . . . . . 1 . . . . . . . . . . 1 1 . . . . . . . . . . . 1 1 . 4 . Network Hub 4 | . . . . . . . . . . . . . . . . 4 . . . . . . . . . . . . . . . . . Energy Cycler 1 | . . . . . . . . . . . . . . . . . . . . . . . . . . . . . . . . 1 . Machines Repaired . | . . . . . . . . . . . . . . . . . . . . . . . . . . . . . . . . . . Machines Dismantled . | . . . . . . . . . . . . . . . . . . . . . . . . . . . . . . . . . . Machines Sabotaged 1 | . . . . . . . . . . . . . . . . 1 . . . . . . . . . . . . . . . . . Overloaded Fab Kills . | . . . . . . . . . . . . . . . . . . . . . . . . . . . . . . . . . . Hacking | -11 -10 -10 -8 -8 -7 -7 -7 -7 -7 -7 -6 -6 -6 -6 -6 -6 -5 -5 -5 -5 -4 -4 -4 -4 -4 -3 -3 -3 -3 -2 -2 -1 -1 --------- Run | Yrd Mat Sub Mat Sto Fac Was Fac Low Low Dat Pro Fac Ext Cet Arc Hub Fac Upp Upp Zhi Pro Fac Upp Upp War Pro Res Qua Frg Res Tes Acc Com Machines Accessed 119 | . 9 1 1 7 20 . 16 1 . 4 . 5 3 . . 5 5 4 1 4 . 4 . 1 5 . 3 8 4 . 3 1 4 Terminals 61 | . 8 . 1 7 8 . 7 . . . . 1 3 . . 4 3 1 1 . . 3 . . . . . 6 2 . 1 1 4 Fabricators 12 | . . . . . 4 . 4 . . . . 3 . . . . . . . . . . . . . . 1 . . . . . . Repair Stations 4 | . . . . . 1 . 2 . . . . 1 . . . . . . . . . . . . . . . . . . . . . Recycling Units 1 | . 1 . . . . . . . . . . . . . . . . . . . . . . . . . . . . . . . . Scanalyzers 12 | . . . . . 4 . 1 . . . . . . . . . 1 . . . . 1 . . . . 2 1 1 . 1 . . Garrison Access 10 | . . . . . 3 . 2 . . . . . . . . 1 1 . . . . . . . . . . 1 1 . 1 . . Total Hacks 395 | . 32 1 1 23 47 . 36 1 . 27 . 12 6 . . 18 29 11 5 17 . 31 . 1 10 . 15 31 14 . 6 6 15 Successful 203 | . 21 1 . 13 19 . 15 1 . 27 . 5 . . . 5 15 11 5 17 . 7 . 1 10 . 4 10 8 . 1 3 4 Failed 192 | . 11 . 1 10 28 . 21 . . . . 7 6 . . 13 14 . . . . 24 . . . . 11 21 6 . 5 3 11 Catastrophic 44 | . 1 . . 1 8 . 6 . . . . . 2 . . 2 2 . . . . 4 . . . . 3 8 . . 2 1 4 Database Lockouts . | . . . . . . . . . . . . . . . . . . . . . . . . . . . . . . . . . . Manual 106 | . 17 . 1 11 11 . 4 . . . . 6 3 1 . 6 8 . . . . 9 . . 1 . . 13 7 . 2 1 5 Terminals 207 | . 31 . 1 23 16 . 12 . . . . 3 6 . . 15 17 6 5 . . 15 . . . . . 27 6 . 3 6 15 Fabricators 36 | . . . . . 13 . 12 . . . . 6 . . . . . . . . . . . . . . 5 . . . . . . Repair Stations 15 | . . . . . 4 . 8 . . . . 3 . . . . . . . . . . . . . . . . . . . . . Recycling Units 1 | . 1 . . . . . . . . . . . . . . . . . . . . . . . . . . . . . . . . Scanalyzers 54 | . . . . . 10 . 1 . . . . . . . . . 9 . . . . 16 . . . . 10 1 5 . 2 . . Garrison Access 20 | . . . . . 4 . 3 . . . . . . . . 3 3 . . . . . . . . . . 3 3 . 1 . . Terminal Hacks 126 | . 13 1 . 9 4 . 3 1 . 27 . 1 . . . 1 6 11 5 17 . 2 . 1 10 . . 6 4 . . 2 2 Record 33 | . . . . . . . . . . 11 . . . . . . . 9 5 5 . . . . 3 . . . . . . . . Part Schematic 12 | . . . . . . . . . . 8 . . . . . . . . . 4 . . . . . . . . . . . . . Robot Schematic 5 | . . . . . . . . . . 5 . . . . . . . . . . . . . . . . . . . . . . . Robot Analysis 7 | . 2 . . . . . . . . . . . . . . . . . . 4 . 1 . . . . . . . . . . . Prototype ID Bank 24 | . 4 . . 1 2 . . . . 3 . . . . . . 1 . . 4 . . . . 6 . . 1 1 . . 1 . Open Door 7 | . . . . 2 . . . 1 . . . . . . . . . 2 . . . . . 1 1 . . . . . . . . Level Access Points 1 | . . . . . . . . . . . . . . . . . . . . . . . . . . . . . 1 . . . . Branch Access Points 2 | . . . . 1 . . 1 . . . . . . . . . . . . . . . . . . . . . . . . . . Emergency Access Points 2 | . . . . . . . . . . . . . . . . . 1 . . . . . . . . . . . . . . . 1 Machine Index 1 | . . . . . . . . . . . . . . . . . . . . . . . . . . . . . . . . . 1 Terminal Index 4 | . 1 . . 1 . . . . . . . 1 . . . . . . . . . . . . . . . 1 . . . . . Repair Station Index 1 | . 1 . . . . . . . . . . . . . . . . . . . . . . . . . . . . . . . . Scanalyzer Index 2 | . 1 . . . . . . . . . . . . . . . . . . . . . . . . . . 1 . . . . . Unreport Threat 9 | . . . . . 2 . . . . . . . . . . 1 3 . . . . . . . . . . 2 1 . . . . Locate Traps 6 | . 3 . . 1 . . 1 . . . . . . . . . . . . . . . . . . . . 1 . . . . . Hauler Manifests 3 | . . . . 1 . . 1 . . . . . . . . . . . . . . 1 . . . . . . . . . . . Registered Components 2 | . 1 . . . . . . . . . . . . . . . . . . . . . . . . . . . . . . 1 . Registered Prototypes 1 | . . . . 1 . . . . . . . . . . . . . . . . . . . . . . . . . . . . . Zone Layout 2 | . . . . 1 . . . . . . . . . . . . 1 . . . . . . . . . . . . . . . . Proto ID Catalog 2 | . . 1 . . . . . . . . . . . . . . . . . . . . . . . . . . 1 . . . . Fabricator Hacks 13 | . . . . . 5 . 6 . . . . 1 . . . . . . . . . . . . . . 1 . . . . . . Load Schematic 10 | . . . . . 4 . 4 . . . . 1 . . . . . . . . . . . . . . 1 . . . . . . Build 3 | . . . . . 1 . 2 . . . . . . . . . . . . . . . . . . . . . . . . . . Repair Station Hacks 4 | . . . . . 2 . 2 . . . . . . . . . . . . . . . . . . . . . . . . . . Scan Component 3 | . . . . . 1 . 2 . . . . . . . . . . . . . . . . . . . . . . . . . . Repair 1 | . . . . . 1 . . . . . . . . . . . . . . . . . . . . . . . . . . . . Recycling Unit Hacks 1 | . 1 . . . . . . . . . . . . . . . . . . . . . . . . . . . . . . . . Retrieve Components 1 | . 1 . . . . . . . . . . . . . . . . . . . . . . . . . . . . . . . . Scanalyzer 23 | . . . . . 4 . 1 . . . . . . . . . 5 . . . . 5 . . . . 3 1 3 . 1 . . Insert Component 12 | . . . . . 2 . 1 . . . . . . . . . 2 . . . . 2 . . . . 2 . 2 . 1 . . Analyze 2 | . . . . . 1 . . . . . . . . . . . 1 . . . . . . . . . . . . . . . . Retrieve Study 9 | . . . . . 1 . . . . . . . . . . . 2 . . . . 3 . . . . 1 1 1 . . . . Garrison Access Hacks 3 | . . . . . 1 . . . . . . . . . . 1 1 . . . . . . . . . . . . . . . . Seal Access 3 | . . . . . 1 . . . . . . . . . . 1 1 . . . . . . . . . . . . . . . . Unauthorized Hacks 33 | . 7 . . 4 3 . 3 . . . . 3 . . . 3 3 . . . . . . . . . . 3 1 . . 1 2 Terminals 24 | . 7 . . 4 . . 1 . . . . . . . . 3 3 . . . . . . . . . . 3 . . . 1 2 Assimilate 1 | . . . . . . . . . . . . . . . . . 1 . . . . . . . . . . . . . . . . Botnet 14 | . 2 . . 2 . . 1 . . . . . . . . 2 2 . . . . . . . . . . 2 . . . 1 2 Operators 1 | . . . . . . . . . . . . . . . . . . . . . . . . . . . . 1 . . . . . Skim 7 | . 5 . . 2 . . . . . . . . . . . . . . . . . . . . . . . . . . . . . Sabotage 1 | . . . . . . . . . . . . . . . . 1 . . . . . . . . . . . . . . . . . Fabricators 7 | . . . . . 2 . 2 . . . . 3 . . . . . . . . . . . . . . . . . . . . . Liberate 1 | . . . . . 1 . . . . . . . . . . . . . . . . . . . . . . . . . . . . Recompile 6 | . . . . . 1 . 2 . . . . 3 . . . . . . . . . . . . . . . . . . . . . Repair Stations . | . . . . . . . . . . . . . . . . . . . . . . . . . . . . . . . . . . Recycling Units . | . . . . . . . . . . . . . . . . . . . . . . . . . . . . . . . . . . Scanalyzers 1 | . . . . . 1 . . . . . . . . . . . . . . . . . . . . . . . . . . . . Extract 1 | . . . . . 1 . . . . . . . . . . . . . . . . . . . . . . . . . . . . Garrison Access 1 | . . . . . . . . . . . . . . . . . . . . . . . . . . . . . 1 . . . . Jam 1 | . . . . . . . . . . . . . . . . . . . . . . . . . . . . . 1 . . . . Data Cores Recovered 5 | . 1 . . . 1 . 2 . . . . 1 . . . . . . . . . . . . . . . . . . . . . Used 1 | . . . . . . . 1 . . . . . . . . . . . . . . . . . . . . . . . . . . Hacking Detections 84 | . 8 . 1 5 16 . 14 . . . . 3 3 . . 3 4 . 1 . . 4 . . . . 3 7 3 . 3 1 5 Full Trace Events 10 | . . . . 1 3 . 2 . . . . . 1 . . . . . . . . 1 . . . . 1 1 . . . . . Feedback Events . | . . . . . . . . . . . . . . . . . . . . . . . . . . . . . . . . . . Feedback Blocked . | . . . . . . . . . . . . . . . . . . . . . . . . . . . . . . . . . . Robot Schematics Acquired 8 | . . . . . . . . . . 5 . . . . . . . . . . . . . . . . . . 2 . 1 . . Robots Built . | . . . . . . . . . . . . . . . . . . . . . . . . . . . . . . . . . . Authchips . | . . . . . . . . . . . . . . . . . . . . . . . . . . . . . . . . . . Time . | . . . . . . . . . . . . . . . . . . . . . . . . . . . . . . . . . . Total Robot Build Rating . | . . . . . . . . . . . . . . . . . . . . . . . . . . . . . . . . . . Part Schematics Acquired 32 | . . . . . 2 . . . . 8 . . . . . . 1 . . 4 . . . . . . . . 14 . 3 . . Parts Built 3 | . . . . . 1 . 2 . . . . . . . . . . . . . . . . . . . . . . . . . . Authchips 3 | . . . . . 1 . 2 . . . . . . . . . . . . . . . . . . . . . . . . . . Time 224 | . . . . . 56 . 168 . . . . . . . . . . . . . . . . . . . . . . . . . . Total Part Build Rating 18 | . . . . . 6 . 12 . . . . . . . . . . . . . . . . . . . . . . . . . . Part Studies Acquired 9 | . . . . . 1 . . . . . . . . . . . 2 . . . . 3 . . . . 1 1 1 . . . . Parts Repaired 1 | . . . . . 1 . . . . . . . . . . . . . . . . . . . . . . . . . . . . Time 70 | . . . . . 70 . . . . . . . . . . . . . . . . . . . . . . . . . . . . Parts Recycled . | . . . . . . . . . . . . . . . . . . . . . . . . . . . . . . . . . . Recycled Matter . | . . . . . . . . . . . . . . . . . . . . . . . . . . . . . . . . . . Retrieved Matter . | . . . . . . . . . . . . . . . . . . . . . . . . . . . . . . . . . . Retrieved Components 5 | . 5 . . . . . . . . . . . . . . . . . . . . . . . . . . . . . . . . Parts Scanalyzed 2 | . . . . . 1 . . . . . . . . . . . 1 . . . . . . . . . . . . . . . . Part Schematics Acquired 2 | . . . . . 1 . . . . . . . . . . . 1 . . . . . . . . . . . . . . . . Parts Damaged 1 | . . . . . . . . . . . . . . . . . 1 . . . . . . . . . . . . . . . . Bothacking | -11 -10 -10 -8 -8 -7 -7 -7 -7 -7 -7 -6 -6 -6 -6 -6 -6 -5 -5 -5 -5 -4 -4 -4 -4 -4 -3 -3 -3 -3 -2 -2 -1 -1 ------------ Run | Yrd Mat Sub Mat Sto Fac Was Fac Low Low Dat Pro Fac Ext Cet Arc Hub Fac Upp Upp Zhi Pro Fac Upp Upp War Pro Res Qua Frg Res Tes Acc Com Used RIF Installer . | . . . . . . . . . . . . . . . . . . . . . . . . . . . . . . . . . . Robots Hacked 1 | . . . . . . . . . . . . . . . . . . . . . . . . . . . 1 . . . . . . Non-combat . | . . . . . . . . . . . . . . . . . . . . . . . . . . . . . . . . . . Combat 1 | . . . . . . . . . . . . . . . . . . . . . . . . . . . 1 . . . . . . Robot Hacks Applied 1 | . . . . . . . . . . . . . . . . . . . . . . . . . . . 1 . . . . . . parse_system 1 | . . . . . . . . . . . . . . . . . . . . . . . . . . . 1 . . . . . . Relay Couplers Released 3 | . . . . . . . . . . . . . . . . . . . . . . . . . . . . . . 2 . 1 . Machine Destruction 3 | . . . . . . . . . . . . . . . . . . . . . . . . . . . . . . 2 . 1 . Fabnet Peak Effective % . | . . . . . . . . . . . . . . . . . . . . . . . . . . . . . . . . . . Robots Rewired 12 | . . . . . . . . . . . . . 12 . . . . . . . . . . . . . . . . . . . . Allies Hacked 2 | . . . . . 1 . . . . . . . . . . . 1 . . . . . . . . . . . . . . . . Hacks Repelled . | . . . . . . . . . . . . . . . . . . . . . . . . . . . . . . . . . . Allies | -11 -10 -10 -8 -8 -7 -7 -7 -7 -7 -7 -6 -6 -6 -6 -6 -6 -5 -5 -5 -5 -4 -4 -4 -4 -4 -3 -3 -3 -3 -2 -2 -1 -1 -------- Run | Yrd Mat Sub Mat Sto Fac Was Fac Low Low Dat Pro Fac Ext Cet Arc Hub Fac Upp Upp Zhi Pro Fac Upp Upp War Pro Res Qua Frg Res Tes Acc Com Total Allies 46 | . . . . 10 3 . . . . . . . 25 5 . . 1 2 . . . . . . . . . . . . . . . Largest Group 20 | . . . . 10 3 . . . . . . . 16 20 20 17 1 2 . . . . . . . . . . . . . . . Highest-Rated Group 1055 | . . . . 173 106 . . . . . . . 628 1055 1055 787 10 40 . . . . . . . . . . . . . . . Highest-Rated Ally 152 | . . . . 29 37 . . . . . . . 152 152 143 96 10 20 . . . . . . . . . . . . . . . Total Orders 54 | . . . . . . . . . . . . . . . 1 3 . . . . . . . . . . . . . 1 14 19 16 STAY 4 | . . . . . . . . . . . . . . . 1 3 . . . . . . . . . . . . . . . . . FOLLOW 2 | . . . . . . . . . . . . . . . . . . . . . . . . . . . . . . . . 1 1 RETURN 48 | . . . . . . . . . . . . . . . . . . . . . . . . . . . . . . 1 14 18 15 Ally Attacks 539 | . . . . 76 28 . . . . . . . 102 46 30 64 . . . . . . . . . . . . . 1 65 68 59 Total Damage 17314 | . . . . 931 681 . . . . . . . 1807 1472 843 1393 . . . . . . . . . . . . . 76 3342 3729 3040 Kills 93 | . . . . 9 8 . . . . . . . 9 7 4 9 . . . . . . . . . . . . . 1 19 20 7 Allies Corrupted 10 | . . . . . . . . . . . . . . . . 5 . . . . . . . . . . . . . . 3 . 2 Allies Melted 2 | . . . . . . . . . . . . . . . . . . . . . . . . . . . . . . 2 . . . Intel | -11 -10 -10 -8 -8 -7 -7 -7 -7 -7 -7 -6 -6 -6 -6 -6 -6 -5 -5 -5 -5 -4 -4 -4 -4 -4 -3 -3 -3 -3 -2 -2 -1 -1 ------- Run | Yrd Mat Sub Mat Sto Fac Was Fac Low Low Dat Pro Fac Ext Cet Arc Hub Fac Upp Upp Zhi Pro Fac Upp Upp War Pro Res Qua Frg Res Tes Acc Com Active Infowar (turns) 38839 | 66 1073 1275 357 1064 2121 26 1393 239 253 30 196 414 872 340 591 2094 1080 1887 1104 242 564 575 847 663 1406 587 1661 1460 2774 1079 1924 5602 2980 Optics 34363 | . . . . 410 2121 26 1393 239 253 30 196 414 872 340 591 2094 1080 1887 1104 242 564 575 847 663 1406 587 1661 1460 1723 1079 1924 5602 2980 Sensors 17951 | . . . . . 1765 26 1199 239 253 30 196 414 469 . 76 1721 1010 1344 907 177 . 108 780 460 444 308 1526 1053 2083 . 636 727 . IFF 1070 | . . . . . . . . . . . . . . . . . . . . 69 564 437 . . . . . . . . . . . Terrain 3301 | 66 440 . 152 . . . . . . . . . . . . . . . . . . . . . . . 1644 414 585 . . . . Seismic 3510 | 17 1073 1275 357 788 . . . . . . . . . . . . . . . . . . . . . . . . . . . . . Cloaking 196 | . . . . . . . . . . . . . . . . . . . . . . . . . . . . . . . . 2 194 Jamming 5757 | . . . . . . . . . . . . . . . . . . 106 197 66 564 534 . . . . 1388 93 720 35 1373 681 . ECM 3 | . . . . . . . . . . . . . . . . . . . . . . . . . . . . . 1 . . 2 . Robot Analysis Total 7 | . 2 . . . . . . . . . . . . . . . . . . 4 . 1 . . . . . . . . . . . Derelict Logs Recovered 13 | . . 1 . . . . . 2 2 . 1 . . . . . . 2 3 . 1 . 1 . . . . . . . . . . Drone Launches 61 | . . . . . . . . . . . . . . . . . . . . . . . . . . . . . . 1 19 21 20 Drone Recoveries 50 | . . . . . . . . . . . . . . . . . . . . . . . . . . . . . . 1 14 20 15 Exploration | -11 -10 -10 -8 -8 -7 -7 -7 -7 -7 -7 -6 -6 -6 -6 -6 -6 -5 -5 -5 -5 -4 -4 -4 -4 -4 -3 -3 -3 -3 -2 -2 -1 -1 ------------- Run | Yrd Mat Sub Mat Sto Fac Was Fac Low Low Dat Pro Fac Ext Cet Arc Hub Fac Upp Upp Zhi Pro Fac Upp Upp War Pro Res Qua Frg Res Tes Acc Com Turns Passed 40269 | 154 1073 1640 357 1064 2121 26 1393 239 253 30 196 414 872 340 591 2094 1080 1887 1104 242 564 575 847 663 1406 587 1661 1460 3214 1604 1924 5614 2980 Spaces Moved 31446 | 48 452 1021 239 538 3653 70 2461 597 562 78 427 670 846 169 177 1077 841 1557 896 175 427 416 676 482 984 443 1019 966 2074 966 961 3789 1689 Core 1 | 1 . . . . . . . . . . . . . . . . . . . . . . . . . . . . . . . . . Treads 2454 | 47 452 212 . 404 146 . . . . . . . . 123 177 893 . . . . . . . . . . . . . . . . . Legs 18545 | . . . . . . . . . . . . . . . . 184 841 1557 896 175 427 416 676 482 984 443 1019 966 2074 966 961 3789 1689 Wheels 1182 | . . 809 239 134 . . . . . . . . . . . . . . . . . . . . . . . . . . . . . Hover 9264 | . . . . . 3507 70 2461 597 562 78 427 670 846 46 . . . . . . . . . . . . . . . . . . . Flight . | . . . . . . . . . . . . . . . . . . . . . . . . . . . . . . . . . . Fastest Speed 22 | 50 160 120 110 120 38 26 26 34 34 38 22 34 26 40 160 108 105 100 100 105 108 108 108 112 106 106 105 104 96 100 100 110 112 Average Speed 93 | 157 190 130 114 151 43 37 38 37 37 38 37 34 35 129 160 151 106 101 101 106 108 108 109 112 111 106 105 114 100 102 118 118 117 Slowest Speed 320 | 160 240 160 120 320 160 38 93 38 38 38 38 34 40 160 160 160 108 108 170 108 108 108 112 112 112 106 108 173 176 196 260 230 190 Overloaded Moves 41 | . . . . . . 4 13 5 4 . 12 . 3 . . . . . . . . . . . . . . . . . . . . Propulsion Burnouts . | . . . . . . . . . . . . . . . . . . . . . . . . . . . . . . . . . . Robots Hopped . | . . . . . . . . . . . . . . . . . . . . . . . . . . . . . . . . . . Potential Cave-ins 19 | . . . . . . . . . . . . . . . . . . . . . . . . . . . . . 18 . 1 . . Cave-ins Triggered 1 | . . . . . . . . . . . . . . . . . . . . . . . . . . . . . 1 . . . . Teleports 3 | . . . . . . . . . . . . . . . . . . . . . . . . . . . . . 1 1 1 . . Exploration Rate (%) 63 | 5 88 59 21 84 83 92 63 72 78 72 65 19 87 60 88 80 23 96 86 61 63 13 70 64 88 58 20 93 41 46 94 93 48 Regions Visited 33 Branch Regions 22 Pre-discovered Areas 10 | . . . . . . . . 1 . 1 . . . . . . . 3 1 3 . . 1 . . . . . . . . . . Known Exits Taken 26 | . 1 1 1 . . . 1 1 1 1 1 1 1 1 1 1 1 1 1 . 1 1 1 1 1 1 1 1 1 . 1 . . Unknown Exits Taken 5 | 1 . . . 1 . . . . . . . . . . . . . . . 1 . . . . . . . . . 1 . 1 . Scrap Searched 20 | . . . . . . . . 1 4 . 1 . . . . . . 3 3 . . . 4 2 . 2 . . . . . . . Spaces Dug 384 | . 2 . . . 2 . 46 27 40 . 13 3 . 4 . 2 9 4 2 . 35 11 4 32 1 21 7 9 32 18 14 19 27 Terrain Destroyed 2347 | . 5 . . 1 59 . 171 27 76 . 71 22 47 7 20 57 12 13 32 . 55 50 11 79 43 62 14 11 175 367 254 455 151 Melee 57 | . . . . . 2 . 4 . 2 . . 3 . 4 . . 9 4 1 . 4 4 3 10 . . . 7 . . . . . Projectile 1064 | . 2 . . 1 . . . . 3 . . . 9 3 20 57 3 8 20 . 3 15 7 7 18 15 14 2 175 249 196 126 111 AOE 1198 | . 3 . . . 57 . 167 27 71 . 71 19 38 . . . . . 9 . 48 29 . 61 22 47 . . . 102 58 329 40 Terrain Rammed . | . . . . . . . . . . . . . . . . . . . . . . . . . . . . . . . . . . Walls Destroyed . | . . . . . . . . . . . . . . . . . . . . . . . . . . . . . . . . . . Machines Disabled . | . . . . . . . . . . . . . . . . . . . . . . . . . . . . . . . . . . Actions | -11 -10 -10 -8 -8 -7 -7 -7 -7 -7 -7 -6 -6 -6 -6 -6 -6 -5 -5 -5 -5 -4 -4 -4 -4 -4 -3 -3 -3 -3 -2 -2 -1 -1 --------- Run | Yrd Mat Sub Mat Sto Fac Was Fac Low Low Dat Pro Fac Ext Cet Arc Hub Fac Upp Upp Zhi Pro Fac Upp Upp War Pro Res Qua Frg Res Tes Acc Com Total 38843 | 94 602 1246 290 692 4081 69 2791 604 579 78 443 806 1326 250 458 1366 956 1754 982 211 513 494 739 542 1131 523 1572 1216 2870 1253 1380 4589 2343 Wait 3065 | . 92 162 4 13 229 . 159 . . . 2 83 273 37 255 149 41 96 13 . 71 13 25 6 34 40 454 75 322 6 76 129 206 Move 31412 | 47 451 1020 238 537 3653 69 2460 596 561 77 426 669 845 168 176 1077 840 1556 895 174 426 415 675 481 983 442 1018 965 2072 965 959 3788 1688 Hop . | . . . . . . . . . . . . . . . . . . . . . . . . . . . . . . . . . . Pick Up 446 | 3 10 10 9 9 32 . 13 . . . 1 6 3 . 3 14 14 10 2 3 . 10 3 3 6 2 20 17 58 18 35 84 48 Fast Attach 219 | 7 2 . 2 8 8 . 4 . 1 . . 1 2 3 2 2 . 2 1 4 . 1 . . 7 1 5 21 33 13 26 50 13 Attach 192 | . . 4 5 2 6 . 5 2 . . 1 4 4 . . 6 2 4 2 2 . 6 2 1 1 3 5 3 18 11 23 42 28 Detach 82 | . . . 1 2 4 . 1 1 . 1 . . 4 3 1 1 . 1 . 2 . 1 . . 2 3 2 3 4 2 13 23 7 Swap 691 | 2 6 9 4 15 46 . 25 2 5 . 5 8 15 10 7 21 19 27 16 9 5 10 7 11 16 5 26 37 95 55 33 81 59 Drop 447 | . 5 . 5 20 28 . 14 . . . . 5 5 8 3 14 4 9 4 4 . 4 1 2 13 1 21 32 63 20 27 101 34 Fire 1882 | 35 31 41 22 80 59 . 62 1 8 . 5 14 54 17 11 74 22 36 46 4 5 28 16 20 69 26 21 43 195 159 162 265 251 Melee 170 | . . . . . 15 . 28 1 4 . 3 16 1 4 . 2 11 13 3 9 6 6 10 18 . . . 20 . . . . . Ram . | . . . . . . . . . . . . . . . . . . . . . . . . . . . . . . . . . . Kick 13 | . . . . . . . . . . . . . . . . . 3 . . . . . . . . . . . 3 4 2 1 . Crush 16 | . 5 . . 5 . . . . . . . . . . . 6 . . . . . . . . . . . . . . . . . Escape Stasis 111 | . . . . . . . 20 . . . . . 26 . . . . . . . . . . . . . . . 7 . 24 25 9 Rewire 96 | . . . . . 1 . . 1 . . . . 94 . . . . . . . . . . . . . . . . . . . . Trap 1 | . . . . 1 . . . . . . . . . . . . . . . . . . . . . . . . . . . . . Miscellaneous . | . . . . . . . . . . . . . . . . . . . . . . . . . . . . . . . . . . Route ------- -11/Scrapyard -10/Materials (discovered 5 exits: *Mat x2 / *Min x2 / *Sub) -10/Subcaves (discovered 2 exits: *Mat x2) -8/Materials (discovered 3 exits: *Fac / *Sto x2) -8/Storage (discovered 2 exits: *Fac / Rec) -7/Factory (discovered 6 exits: *Fac x4 / *Low x2) -7/Waste -7/Factory (discovered 5 exits: *Fac x3 / *Low x2) -7/Lower Caves -7/Lower Caves -7/Data Miner -6/Proximity Caves -6/Factory (discovered 2 exits: Fac / *Ext) -6/Extension (discovered 2 exits: *Fac / *Cet) -6/Cetus (discovered 2 exits: *Fac / *Arc) -6/Archives (discovered 3 exits: *Fac / *Hub x2) -6/Hub_04(d) (discovered 4 exits: *Fac x4) -5/Factory (discovered 2 exits: *Fac / *Upp) -5/Upper Caves -5/Upper Caves (discovered 2 exits: *Fac / *Zhi) -5/Zhirov -4/Proximity Caves -4/Factory (discovered 3 exits: Res x2 / *Upp) -4/Upper Caves -4/Upper Caves (discovered 2 exits: *Res / *War) -4/Warlord -3/Proximity Caves -3/Research (discovered 3 exits: *Res / Arm / *Qua) -3/Quarantine (discovered 3 exits: *Res / [*Sec] / *Frg) -3/Protoforge -2/Research (discovered 4 exits: *Acc x2 / *Tes x2) -2/Testing -1/Access -1/Command (discovered 2 exits: [*Sur x2]) 0b11 Command History --------- Turn | Location | Event 7 | -11/Scrapyard | Discovered new exit (range 15) 155 | -11/Scrapyard | Entered Materials 308 | -10/Materials | Build established: Mutant 395 | -10/Materials | Discovered new exit (range 13) 528 | -10/Materials | Discovered new exit (range 13) 815 | -10/Materials | Identified exit to Materials 815 | -10/Materials | Identified exit to Mines 864 | -10/Materials | Learned Storage security intel 902 | -10/Materials | Identified exit to Subcaves 953 | -10/Materials | Learned 2 Storage zone layouts 962 | -10/Materials | Learned 2 Mines zone layouts 982 | -10/Materials | Learned location of 2 exits from Mines 1228 | -10/Materials | Entered Subcaves 1229 | -10/Subcaves | Approached by a straggling Scientist 1229 | -10/Subcaves | Identified exit to Materials 1368 | -10/Subcaves | Core integrity fell below 50% 1546 | -10/Subcaves | Lost 3 parts (1p1n1u) 1956 | -10/Subcaves | Core integrity fell below 20% 2199 | -10/Subcaves | Disturbed a concealed Subdweller 2395 | -10/Subcaves | Learned location of 1 exit from Materials 2537 | -10/Subcaves | Visited 4L-MR0's lab 2556 | -10/Subcaves | Found Cargo Legs 2747 | -10/Subcaves | Build established: Scavenger-Mutant 2868 | -10/Subcaves | Entered Materials 2868 | -8/Materials | Evolved 4 slots: Propulsion x2, Utility x2 2869 | -8/Materials | Identified exit to Storage 3074 | -8/Materials | Discovered exit to Storage (range 15) 3154 | -8/Materials | Discovered new exit (range 16) 3225 | -8/Materials | Entered Storage 3352 | -8/Storage | Assisted by bots powering up and referring to "LRC-V3" 3523 | -8/Storage | Door terminal overloaded 3640 | -8/Storage | Build established: Commander-Mutant 3696 | -8/Storage | Garrison activated, responded to threat 3979 | -8/Storage | Lost 3 allies 4059 | -8/Storage | Lost 5 allies 4122 | -8/Storage | Met 01-MTF 4146 | -8/Storage | Discovered new exit (range 20) 4158 | -8/Storage | Identified exit to Recycling 4217 | -8/Storage | Build established: Scavenger-Mutant 4242 | -8/Storage | Destroyed 01-MTF 4257 | -8/Storage | Found Prototype Energy Gun 4257 | -8/Storage | Identified 01-MTF's Shockpuncher 4268 | -8/Storage | Lost 4 parts (3n1u) 4289 | -8/Storage | Entered Factory 4289 | -7/Factory | Evolved 2 slots: Utility x1, Weapon x1 4744 | -7/Factory | Repaired Imp. Airjet 4886 | -7/Factory | Discovered new exit (range 19) 4960 | -7/Factory | Build established: Scout 5101 | -7/Factory | Discovered new exit (range 20) 5114 | -7/Factory | Identified exit to Factory 5346 | -7/Factory | P-60 Hacker assimilated hostile Y-54 Guardian 5404 | -7/Factory | Discovered new exit (range 18) 5421 | -7/Factory | Identified exit to Lower Caves 5648 | -7/Factory | Discovered exit to Factory (range 4) 5713 | -7/Factory | Discovered exit to Lower Caves (range 19) 6030 | -7/Factory | Fabricated Cld. Gravmag System? 6176 | -7/Factory | Found Rocket Array 6289 | -7/Factory | First assault squad dispatched 6297 | -7/Factory | Discovered exit to Factory (range 11) 6410 | -7/Factory | Manually triggered Chute Trap 6410 | -7/Factory | Sucked down chute 6410 | -7/Factory | Entered Waste 6418 | -7/Waste | Spotted C-40 Crusher 6420 | -7/Waste | Spotted C-40 Crusher 6425 | -7/Waste | EMP discharged 6425 | -7/Waste | Spotted C-40 Crusher 6430 | -7/Waste | Spotted C-40 Crusher 6431 | -7/Waste | Spotted C-40 Crusher 6431 | -7/Waste | Spotted C-40 Crusher 6431 | -7/Waste | Discovered new exit (range 10) 6436 | -7/Waste | Identified exit to Factory 6436 | -7/Waste | Entered Factory 6664 | -7/Factory | Discovered exit to Factory (range 12) 6826 | -7/Factory | Discovered exit to Factory (range 8) 7111 | -7/Factory | Discovered exit to Factory (range 9) 7610 | -7/Factory | Fabricated Cld. Gravmag System (x1) 7636 | -7/Factory | First assault squad dispatched 7698 | -7/Factory | Fabricated Cld. Gravmag System? 7829 | -7/Factory | Entered Lower Caves 7830 | -7/Lower Caves | Encountered a Warlord checkpoint 7860 | -7/Lower Caves | Learned location of Zion (-6) 7949 | -7/Lower Caves | Discovered new exit (range 18) 8041 | -7/Lower Caves | Identified exit to Lower Caves 8068 | -7/Lower Caves | Entered another Lower Caves area 8075 | -7/Lower Caves | Found DCF Scrap (12 items) 8190 | -7/Lower Caves | Learned 8 Factory zone layouts 8207 | -7/Lower Caves | Learned 4 Factory zone layouts 8310 | -7/Lower Caves | Discovered new exit (range 13) 8320 | -7/Lower Caves | Identified exit to Data Miner 8321 | -7/Lower Caves | Entered Data Miner 8321 | -7/Data Miner | Discovered new exit (range 6) 8323 | -7/Data Miner | Identified exit to Proximity Caves 8328 | -7/Data Miner | Met Data Miner 8339 | -7/Data Miner | Learned location of Section 7 (-3) 8339 | -7/Data Miner | Acquired the access code to Warlord's prototype stash 8343 | -7/Data Miner | Received God Mode back door access code from Data Miner 8351 | -7/Data Miner | Entered Proximity Caves 8353 | -6/Proximity Caves | Learned Factory terminal intel 8480 | -6/Proximity Caves | Spotted B-75 Beast 8521 | -6/Proximity Caves | Attracted the attention of an 0b10 checkpoint 8544 | -6/Proximity Caves | Discovered exit to Factory (range 10) 8547 | -6/Proximity Caves | Entered Factory 8547 | -6/Factory | Evolved 2 slots: Propulsion x1, Utility x1 8548 | -6/Factory | Identified exit to Factory 8549 | -6/Factory | Loaded intel: 25 terminal locations 8770 | -6/Factory | Watched by a mysterious "MATRIX" hacker. 8958 | -6/Factory | Discovered new exit (range 10) 8961 | -6/Factory | Identified exit to Extension 8961 | -6/Factory | Entered Extension 8992 | -6/Extension | Rescued a captive Derelict 8992 | -6/Extension | Rescued a captive Derelict 9034 | -6/Extension | Rescued a captive Derelict 9034 | -6/Extension | Rescued a captive Derelict 9039 | -6/Extension | Rescued a captive Derelict 9043 | -6/Extension | Rescued a captive Derelict 9055 | -6/Extension | Spotted B-75 Beast 9123 | -6/Extension | Rescued a captive Derelict 9138 | -6/Extension | Rescued a captive Derelict 9393 | -6/Extension | Build established: Commander-Scout 9412 | -6/Extension | Allies destroyed B-75 Beast 9414 | -6/Extension | Spotted B-75 Beast 9440 | -6/Extension | Destroyed B-75 Beast 9469 | -6/Extension | Lost 3 allies 9493 | -6/Extension | Rescued a captive Derelict 9495 | -6/Extension | Rescued a captive Derelict 9582 | -6/Extension | Rescued A7 9723 | -6/Extension | Rescued a captive Derelict 9723 | -6/Extension | Rescued a captive Derelict 9762 | -6/Extension | Discovered exit to Factory (range 10) 9763 | -6/Extension | Discovered new exit (range 6) 9776 | -6/Extension | Identified exit to Cetus 9794 | -6/Extension | Build established: Commander-Mutant 9833 | -6/Extension | Entered Cetus 9833 | -6/Cetus | Accompanied by 16 allies (A7) 9838 | -6/Cetus | Acquired a Cetus Manufacturing Module code from A7 9839 | -6/Cetus | Spotted Cetus Guard 9839 | -6/Cetus | Spotted Cetus Guard 9841 | -6/Cetus | Spotted Cetus Guard 9843 | -6/Cetus | Allies destroyed Cetus Guard 9852 | -6/Cetus | Allies destroyed Cetus Guard 9865 | -6/Cetus | Allies destroyed Cetus Guard 9867 | -6/Cetus | Spotted Cetus Guard 9871 | -6/Cetus | Destroyed Cetus Guard 9955 | -6/Cetus | Started Cetus Manufacturing Module 9964 | -6/Cetus | Discovered new exit (range 21) 9980 | -6/Cetus | Manufactured an Enhanced Grunt 10000 | -6/Cetus | Spotted Cetus Guard 10000 | -6/Cetus | Spotted Cetus Guard 10000 | -6/Cetus | Spotted Cetus Guard 10000 | -6/Cetus | Spotted Cetus Guard 10005 | -6/Cetus | Manufactured an Enhanced Grunt 10008 | -6/Cetus | Allies destroyed Cetus Guard 10009 | -6/Cetus | Destroyed Cetus Guard 10020 | -6/Cetus | Allies destroyed Cetus Guard 10022 | -6/Cetus | Allies destroyed Cetus Guard 10022 | -6/Cetus | Discovered exit to Factory (range 22) 10030 | -6/Cetus | Manufactured an Enhanced Grunt 10041 | -6/Cetus | Met Revision 17 10055 | -6/Cetus | Manufactured an Enhanced Grunt 10080 | -6/Cetus | Manufactured an Enhanced Grunt 10115 | -6/Cetus | Identified exit to Archives 10134 | -6/Cetus | Build established: Commander-Tank 10173 | -6/Cetus | Entered Archives 10173 | -6/Archives | Accompanied by 20 allies (A7) 10220 | -6/Archives | Discovered exit to Factory (range 20) 10225 | -6/Archives | Discovered new exit (range 15) 10246 | -6/Archives | Identified exit to Hub_04(d) 10345 | -6/Archives | Discovered exit to Hub_04(d) (range 19) 10764 | -6/Archives | Entered Hub_04(d) 10764 | -6/Hub_04(d) | Accompanied by 17 allies 10856 | -6/Hub_04(d) | Discovered exit to Factory (range 3) 10999 | -6/Hub_04(d) | Network Hub disabled 11031 | -6/Hub_04(d) | Lost 4 allies 11099 | -6/Hub_04(d) | Network Hub disabled 11099 | -6/Hub_04(d) | Spotted B-75 Beast 11108 | -6/Hub_04(d) | Allies destroyed B-75 Beast 11131 | -6/Hub_04(d) | Lost 8 allies 11201 | -6/Hub_04(d) | Spotted Lightning 11203 | -6/Hub_04(d) | Spotted Lightning 11204 | -6/Hub_04(d) | Spotted Lightning 11209 | -6/Hub_04(d) | Destroyed Lightning 11229 | -6/Hub_04(d) | Destroyed Lightning 11250 | -6/Hub_04(d) | Found Prototype Device 11250 | -6/Hub_04(d) | Identified Exp. Phase Shifter 11361 | -6/Hub_04(d) | Found Exp. Targeting Computer 11385 | -6/Hub_04(d) | Build established: Scavenger-Tank 11662 | -6/Hub_04(d) | Discovered exit to Factory (range 11) 12264 | -6/Hub_04(d) | Spotted Lightning 12266 | -6/Hub_04(d) | Spotted Lightning 12277 | -6/Hub_04(d) | Spotted Lightning 12294 | -6/Hub_04(d) | Destroyed Lightning 12305 | -6/Hub_04(d) | Destroyed Lightning 12323 | -6/Hub_04(d) | Found Prototype Device 12323 | -6/Hub_04(d) | Identified Exp. EM Shield 12364 | -6/Hub_04(d) | Destroyed Lightning 12382 | -6/Hub_04(d) | Found Exp. EM Shield 12391 | -6/Hub_04(d) | Found Exp. Targeting Computer 12422 | -6/Hub_04(d) | Spotted Lightning 12429 | -6/Hub_04(d) | Destroyed Lightning 12431 | -6/Hub_04(d) | Spotted Lightning 12431 | -6/Hub_04(d) | Spotted Lightning 12465 | -6/Hub_04(d) | Destroyed Lightning 12474 | -6/Hub_04(d) | Garrison activated, responded to threat 12495 | -6/Hub_04(d) | Destroyed Lightning 12564 | -6/Hub_04(d) | Found Exp. Phase Shifter 12614 | -6/Hub_04(d) | Found Exp. Phase Shifter 12653 | -6/Hub_04(d) | Discovered exit to Factory (range 13) 12702 | -6/Hub_04(d) | Network Hub disabled 12839 | -6/Hub_04(d) | Discovered exit to Factory (range 9) 12850 | -6/Hub_04(d) | Network Hub disabled 12858 | -6/Hub_04(d) | Entered Factory 12858 | -5/Factory | Evolved 2 slots: Power x1, Utility x1 12918 | -5/Factory | Discovered new exit (range 13) 12933 | -5/Factory | Identified exit to Upper Caves 12996 | -5/Factory | Build established: Scavenger-Assassin 13057 | -5/Factory | Discovered new exit (range 16) 13132 | -5/Factory | Identified exit to Factory 13938 | -5/Factory | Entered Upper Caves 14252 | -5/Upper Caves | Attracted the attention of an 0b10 base 14326 | -5/Upper Caves | Destroyed 10 combat bots 14386 | -5/Upper Caves | Learned Research stockpile data 14386 | -5/Upper Caves | Learned Factory stockpile data 14386 | -5/Upper Caves | Learned Factory emergency access door positions 14727 | -5/Upper Caves | Learned location of 1 exit from Factory 14927 | -5/Upper Caves | Build established: Scavenger-Skirmisher 14956 | -5/Upper Caves | Discovered new exit (range 17) 14972 | -5/Upper Caves | Identified exit to Upper Caves 15123 | -5/Upper Caves | Entered an active Warlord outpost 15126 | -5/Upper Caves | A Commander dispatched an escort 15157 | -5/Upper Caves | Destroyed PD-3O5(g) 15451 | -5/Upper Caves | Build established: Scavenger-Assassin 15537 | -5/Upper Caves | Encountered a Warlord checkpoint 15538 | -5/Upper Caves | Learned location of Armory (-3) 15825 | -5/Upper Caves | Entered another Upper Caves area 15825 | -5/Upper Caves | Accompanied by 2 allies 15826 | -5/Upper Caves | Commander's escort returned to base 15826 | -5/Upper Caves | Commander's escort returned to base 15835 | -5/Upper Caves | Ambushed by wild Derelicts 15920 | -5/Upper Caves | Discovered exit to Factory (range 13) 16137 | -5/Upper Caves | Build established: Scavenger-Skirmisher 16282 | -5/Upper Caves | Attracted the attention of an 0b10 base 16287 | -5/Upper Caves | Destroyed 7 combat bots 16312 | -5/Upper Caves | Learned Extension terminal intel 16312 | -5/Upper Caves | Learned Extension security intel 16316 | -5/Upper Caves | Learned 8 Factory zone layouts 16329 | -5/Upper Caves | Found DCF Scrap (12 items) 16491 | -5/Upper Caves | Learned Factory terminal intel 16589 | -5/Upper Caves | Attracted the attention of an 0b10 checkpoint 16774 | -5/Upper Caves | Discovered new exit (range 19) 16792 | -5/Upper Caves | Identified exit to Zhirov 16929 | -5/Upper Caves | Entered Zhirov 16929 | -5/Zhirov | Discovered new exit (range 3) 16948 | -5/Zhirov | Met Zhirov 16967 | -5/Zhirov | Learned location of Quarantine (-3) 16967 | -5/Zhirov | Learned location of Testing (-2) 16967 | -5/Zhirov | Learned location of Command (-1) 16977 | -5/Zhirov | Zhirov requested help retrieving the SGEMP Prototype 16992 | -5/Zhirov | Found Alien Artifact 16992 | -5/Zhirov | Identified Integrated Dissipator 16992 | -5/Zhirov | Installed Integrated Dissipator, increased core heat dissipation (+20) 17007 | -5/Zhirov | Found Alien Artifact 17171 | -5/Zhirov | Entered Proximity Caves 17411 | -4/Proximity Caves | Build established: Scavenger-Mutant 17735 | -4/Proximity Caves | Entered Factory 17735 | -4/Factory | Evolved 2 slots: Utility x1, Weapon x1 17736 | -4/Factory | Identified exit to Research 17740 | -4/Factory | Loaded intel: 26 terminal locations 17848 | -4/Factory | Identified Transdimensional Reconstructor 17882 | -4/Factory | Found Prototype Processor 17889 | -4/Factory | Unchained authorized (BL-1NK) 18096 | -4/Factory | Build established: Scavenger-Gunner 18201 | -4/Factory | Identified Exp. Signal Interpreter 18207 | -4/Factory | Lost 4 parts (1n2u1w) 18287 | -4/Factory | Discovered new exit (range 20) 18309 | -4/Factory | Identified exit to Upper Caves 18310 | -4/Factory | Entered Upper Caves 18442 | -4/Upper Caves | Build established: Scavenger-Assassin 18710 | -4/Upper Caves | Spotted B-86 Titan 18918 | -4/Upper Caves | Destroyed 8 combat bots 19145 | -4/Upper Caves | Discovered new exit (range 10) 19154 | -4/Upper Caves | Identified exit to Upper Caves 19157 | -4/Upper Caves | Entered another Upper Caves area 19211 | -4/Upper Caves | Discovered exit to Research (range 8) 19233 | -4/Upper Caves | Build established: Scavenger-Skirmisher 19470 | -4/Upper Caves | Found Imp. Powered Armor 19588 | -4/Upper Caves | Encountered a Warlord checkpoint 19760 | -4/Upper Caves | Discovered new exit (range 15) 19771 | -4/Upper Caves | Build established: Scavenger-Assassin 19819 | -4/Upper Caves | Identified exit to Warlord 19820 | -4/Upper Caves | Entered Warlord 19859 | -4/Warlord | System corruption cleaned by Quarantine Array 19957 | -4/Warlord | Learned Armory scanalyzer intel 19958 | -4/Warlord | Learned 4 Testing zone layouts 19960 | -4/Warlord | Learned Research emergency access door positions 20258 | -4/Warlord | Opened Warlord's prototype stash 20263 | -4/Warlord | Found Prototype Reactor 20263 | -4/Warlord | Identified Vortex Chain Reactor 20287 | -4/Warlord | Found Prototype Device 20287 | -4/Warlord | Identified System Purifier 20297 | -4/Warlord | Found Prototype Hackware 20362 | -4/Warlord | Visited the Vortex Lab 20370 | -4/Warlord | Found Prototype Energy Gun 20370 | -4/Warlord | Identified Vortex Rifle 20378 | -4/Warlord | Warlord's base attacked by MAIN.C 20488 | -4/Warlord | Met Warlord 20564 | -4/Warlord | Build established: Gunner 20706 | -4/Warlord | Warlord forces counterattacked 20789 | -4/Warlord | Spotted Striker 20803 | -4/Warlord | Spotted B-90 Cyclops 20831 | -4/Warlord | Spotted Striker 20844 | -4/Warlord | Spotted Striker 20880 | -4/Warlord | Spotted Executioner 20880 | -4/Warlord | Spotted Striker 20958 | -4/Warlord | Lost 24 allies 20974 | -4/Warlord | Destroyed 9 combat bots 21013 | -4/Warlord | Build established: Scavenger-Gunner 21018 | -4/Warlord | Lost 3 allies 21053 | -4/Warlord | Warlord base infiltrated, sounded retreat 21166 | -4/Warlord | Spotted Executioner 21178 | -4/Warlord | Found Prototype Launcher 21182 | -4/Warlord | Destroyed Executioner 21187 | -4/Warlord | Discovered new exit (range 12) 21193 | -4/Warlord | Spotted B-90 Cyclops 21199 | -4/Warlord | Spotted Striker 21201 | -4/Warlord | Lost 5 allies 21204 | -4/Warlord | Spotted B-86 Titan 21207 | -4/Warlord | Found Prototype Processor 21207 | -4/Warlord | Identified Exp. Melee Analysis Suite 21225 | -4/Warlord | Identified exit to Proximity Caves 21226 | -4/Warlord | Entered Proximity Caves 21256 | -3/Proximity Caves | Lost 5 allies 21313 | -3/Proximity Caves | Spotter reported a threat 21337 | -3/Proximity Caves | Identified Chain Missile Launcher 21492 | -3/Proximity Caves | Build established: Skirmisher 21621 | -3/Proximity Caves | Discovered exit to Research (range 13) 21813 | -3/Proximity Caves | Entered Research 21813 | -3/Research | Evolved 2 slots: Power x1, Propulsion x1 21814 | -3/Research | Identified exit to Armory 21829 | -3/Research | Attached Cargo Legs, gained temporary slots: Utility x2 21884 | -3/Research | Identified Ghost Barrier 21906 | -3/Research | Found Prototype Device 22013 | -3/Research | Revision forces began assault on 0b10 22103 | -3/Research | Met up with Revision 17++ 22180 | -3/Research | Discovered new exit (range 17) 22197 | -3/Research | Identified exit to Research 22257 | -3/Research | Discovered new exit (range 3) 22259 | -3/Research | Identified exit to Quarantine 22263 | -3/Research | Build established: Scavenger-Skirmisher 22466 | -3/Research | Spotted B-86 Titan 22513 | -3/Research | Research terminal network offline 22652 | -3/Research | Spotted Executioner 22654 | -3/Research | Destroyed Executioner 22661 | -3/Research | Spotted Striker 22666 | -3/Research | Destroyed Striker 22852 | -3/Research | Identified Exp. EM Disruption Field 22861 | -3/Research | Found Gamma Bomb Array 22970 | -3/Research | Build established: Skirmisher 23097 | -3/Research | Spotted Striker 23097 | -3/Research | Spotted Striker 23100 | -3/Research | Destroyed Striker 23411 | -3/Research | Spotted Striker 23411 | -3/Research | Spotted Executioner 23414 | -3/Research | Destroyed Executioner 23414 | -3/Research | Destroyed Striker 23432 | -3/Research | Found Prototype Processor 23432 | -3/Research | Identified Exp. Core Analyzer 23474 | -3/Research | Entered Quarantine 23500 | -3/Quarantine | Cryocooling Duct disabled 23515 | -3/Quarantine | Ambient heat levels rising (+20) 23515 | -3/Quarantine | Non-combat units ordered to evacuate 23517 | -3/Quarantine | Found Alien Artifact 23533 | -3/Quarantine | Found Prototype Hackware 23533 | -3/Quarantine | Identified Exp. System Shield 23567 | -3/Quarantine | Found Alien Artifact 23567 | -3/Quarantine | Identified Phase Armor 23598 | -3/Quarantine | Found Prototype Launcher 23598 | -3/Quarantine | Identified Adv. Micro-nuke Launcher 23643 | -3/Quarantine | Found Alien Artifact 23652 | -3/Quarantine | Unchained authorized (BL-1NK) 23662 | -3/Quarantine | Cryocooling Duct disabled 23677 | -3/Quarantine | Ambient heat levels rising (+20) 23677 | -3/Quarantine | Combat units ordered to evacuate 23777 | -3/Quarantine | Quarantine Guard activated 23857 | -3/Quarantine | Spotted Quarantine Guard 23858 | -3/Quarantine | Spotted Quarantine Guard 23874 | -3/Quarantine | Destroyed Quarantine Guard 23974 | -3/Quarantine | Spotted Quarantine Guard 23980 | -3/Quarantine | Destroyed Quarantine Guard 24019 | -3/Quarantine | Spotted Quarantine Guard 24148 | -3/Quarantine | Build established: Scavenger-Assassin 24152 | -3/Quarantine | Spotted Quarantine Guard 24209 | -3/Quarantine | Destroyed Quarantine Guard 24246 | -3/Quarantine | Destroyed Quarantine Guard 24320 | -3/Quarantine | Spotted Quarantine Guard 24361 | -3/Quarantine | Found Alien Artifact 24369 | -3/Quarantine | Found Transdimensional Reconstructor 24376 | -3/Quarantine | Discovered exit to Research (range 13) 24376 | -3/Quarantine | Spotted Quarantine Guard 24385 | -3/Quarantine | Destroyed Quarantine Guard 24548 | -3/Quarantine | Found Alien Impact Weapon 24548 | -3/Quarantine | Identified Core Stripper 24595 | -3/Quarantine | Spotted Quarantine Guard 24597 | -3/Quarantine | Destroyed Quarantine Guard 24698 | -3/Quarantine | Destroyed Quarantine Guard 24775 | -3/Quarantine | Spotted Fortress 24791 | -3/Quarantine | Destroyed Fortress 24796 | -3/Quarantine | Found Prototype Device 24796 | -3/Quarantine | Identified Thermal Barrier 24799 | -3/Quarantine | Found Prototype Device 24799 | -3/Quarantine | Identified Exp. Force Field 24807 | -3/Quarantine | Found Prototype Protection 24807 | -3/Quarantine | Identified Centrium Heavy Armor Plating 24914 | -3/Quarantine | Discovered new exit (range 9) 24919 | -3/Quarantine | Discovered new exit (range 7) 24919 | -3/Quarantine | Spotted Quarantine Guard 24933 | -3/Quarantine | Identified exit to Protoforge 24934 | -3/Quarantine | Entered Protoforge 25022 | -3/Protoforge | Spotted Hotshot 25022 | -3/Protoforge | Spotted Hotshot 25023 | -3/Protoforge | Spotted Hotshot 25023 | -3/Protoforge | Spotted Hotshot 25024 | -3/Protoforge | Spotted Hotshot 25090 | -3/Protoforge | Build established: Scavenger-Skirmisher 25100 | -3/Protoforge | Targeted by mysterious "MATRIX" hacker. 25174 | -3/Protoforge | Spotted Hotshot 25174 | -3/Protoforge | Spotted Hotshot 25174 | -3/Protoforge | Spotted Hotshot 25359 | -3/Protoforge | Identified Terrabomb 25359 | -3/Protoforge | Identified Dimensional Node Initializer 25472 | -3/Protoforge | Initialized slip node 25539 | -3/Protoforge | System corruption reached 10% 25606 | -3/Protoforge | Found Prototype Device 25609 | -3/Protoforge | Identified Crosscalibrator 25623 | -3/Protoforge | Spotted Immortal 25623 | -3/Protoforge | Spotted Immortal 25630 | -3/Protoforge | Spotted Immortal 25630 | -3/Protoforge | Spotted Decapitator 25630 | -3/Protoforge | Spotted Decapitator 25630 | -3/Protoforge | Spotted Decapitator 25630 | -3/Protoforge | Spotted Decapitator 25631 | -3/Protoforge | Spotted Immortal 25645 | -3/Protoforge | Spotted Immortal 25650 | -3/Protoforge | Destroyed Immortal 25660 | -3/Protoforge | Superfortress began startup sequence 25663 | -3/Protoforge | Destroyed Immortal 25675 | -3/Protoforge | Destroyed Immortal 25691 | -3/Protoforge | Destroyed Decapitator 25697 | -3/Protoforge | Destroyed Decapitator 25697 | -3/Protoforge | Destroyed Decapitator 25697 | -3/Protoforge | Destroyed Decapitator 25724 | -3/Protoforge | Forge Plexus network access discovered 25736 | -3/Protoforge | Destroyed 8 combat bots 25797 | -3/Protoforge | Found Cep. Miniperforator 25800 | -3/Protoforge | Found Cep. Lightning Penetrator 25803 | -3/Protoforge | Found Cep. XC Strikerail 25830 | -3/Protoforge | Found Exp. Jetlance 25841 | -3/Protoforge | Found Cep. Helical Railcannon 25847 | -3/Protoforge | Found Cep. Helical Railcannon 25852 | -3/Protoforge | Found Faulty Cep. Plasma Driver 25859 | -3/Protoforge | Found Cep. Deflector Sword 25864 | -3/Protoforge | Found Faulty Cep. Plasma Driver 25887 | -3/Protoforge | Found Cep. Lightning Penetrator 25893 | -3/Protoforge | Found Cep. XC Strikerail 25904 | -3/Protoforge | Found Faulty Cep. XC Strikerail 25913 | -3/Protoforge | Found Faulty Cep. XC Strikerail 25984 | -3/Protoforge | Found Cep. Weapon Articulator 26043 | -3/Protoforge | Destroyed Immortal 26052 | -3/Protoforge | Destroyed Immortal 26086 | -3/Protoforge | Found Cep. Biometal Exoskeleton 26096 | -3/Protoforge | Found Faulty Cep. Biometal Exoskeleton 26367 | -3/Protoforge | Spotted Hotshot 26367 | -3/Protoforge | Spotted Hotshot 26371 | -3/Protoforge | Spotted Hotshot 26381 | -3/Protoforge | Build established: Gunner 26402 | -3/Protoforge | Spotted Decapitator 26402 | -3/Protoforge | Spotted Decapitator 26402 | -3/Protoforge | Spotted Decapitator 26402 | -3/Protoforge | Spotted Decapitator 26411 | -3/Protoforge | Destroyed Decapitator 26418 | -3/Protoforge | Destroyed Decapitator 26425 | -3/Protoforge | Destroyed Decapitator 26432 | -3/Protoforge | Destroyed Decapitator 26494 | -3/Protoforge | Found Cep. Antigrav Storage Unit 26498 | -3/Protoforge | Found Cep. NT7 Matterbank 26505 | -3/Protoforge | Found Cep. Chromion Battery 26523 | -3/Protoforge | Found Cep. Matter Streamer 26679 | -3/Protoforge | Spotted Hotshot 26684 | -3/Protoforge | First assault squad dispatched 26703 | -3/Protoforge | Destroyed Hotshot 26703 | -3/Protoforge | Destroyed Hotshot 26703 | -3/Protoforge | Destroyed Hotshot 26710 | -3/Protoforge | Incoming assault squad redirected 26712 | -3/Protoforge | Destroyed Hotshot 26760 | -3/Protoforge | Build established: Scavenger-Gunner 26781 | -3/Protoforge | Found Cep. Zero-point Core 26794 | -3/Protoforge | Found Faulty Cep. Zero-point Core 26895 | -3/Protoforge | Spotted V984-d 26895 | -3/Protoforge | Spotted V361-w 26916 | -3/Protoforge | Destroyed V361-w 26918 | -3/Protoforge | Found Imp. Powered Armor 26934 | -3/Protoforge | Found Thermal Barrier 26948 | -3/Protoforge | Spotted Immortal 26948 | -3/Protoforge | Spotted Immortal 26968 | -3/Protoforge | Destroyed Immortal 26977 | -3/Protoforge | Destroyed Immortal 26978 | -3/Protoforge | Found Cep. EMP Blanket Launcher 27001 | -3/Protoforge | Found Exp. Shield Generator 27090 | -3/Protoforge | Found Cep. Hardlight Director 27093 | -3/Protoforge | Found Faulty Exp. Force Field 27127 | -3/Protoforge | Spotted AP7-3 27127 | -3/Protoforge | Spotted AP7-3 27184 | -3/Protoforge | Destroyed AP7-3 27195 | -3/Protoforge | Destroyed AP7-3 27202 | -3/Protoforge | Found Prototype Device 27202 | -3/Protoforge | Identified Exp. ECM Suite 27219 | -3/Protoforge | Destroyed 8 combat bots 27270 | -3/Protoforge | Found Cep. Core Analysis Suite 27279 | -3/Protoforge | Found Faulty Cep. Core Analysis Suite 27282 | -3/Protoforge | Found Faulty Cep. Thermoelectric Network 27284 | -3/Protoforge | Identified Subatomic Replicator 27284 | -3/Protoforge | Used Subatomic Replicator to replicate Faulty Cep. Thermoelectric Network 27296 | -3/Protoforge | Found Faulty Cep. Impact Drone Bay 27299 | -3/Protoforge | Found Faulty Cep. Impact Drone Bay 27329 | -3/Protoforge | Incoming investigation squad redirected 27341 | -3/Protoforge | Incoming investigation squad redirected 27437 | -3/Protoforge | Additional patrols dispatched to research labs 27452 | -3/Protoforge | Found Cep. Nanofilaments [Endoweave] 27452 | -3/Protoforge | Installed Cep. Nanofilaments [Endoweave], 5 resistances modified: KI +10%, TH +10%, EX -50%, S -20%, P +20% 27469 | -3/Protoforge | Found Transdimensional Reconstructor 27496 | -3/Protoforge | Warped through subspace to slip node 27498 | -3/Protoforge | System corruption reached 30% 27558 | -3/Protoforge | Build established: Gunner 27570 | -3/Protoforge | Crushed by falling debris 27688 | -3/Protoforge | Found Cep. Heavy Railcannon 27701 | -3/Protoforge | Found Faulty Cep. Helical Railcannon 27710 | -3/Protoforge | Found Faulty Cep. Plasma Driver 27958 | -3/Protoforge | Destroyed 12 combat bots 28097 | -3/Protoforge | Spotted Hotshot 28109 | -3/Protoforge | Destroyed Hotshot 28114 | -3/Protoforge | Destroyed Hotshot 28119 | -3/Protoforge | Destroyed Hotshot 28125 | -3/Protoforge | Destroyed Hotshot 28148 | -3/Protoforge | Entered Research 28148 | -2/Research | Warlord forces began assault on 0b10 28148 | -2/Research | Evolved 2 slots: Utility x2 28258 | -2/Research | Research machine network offline 28348 | -2/Research | Spotted B-90 Cyclops 28350 | -2/Research | Destroyed B-90 Cyclops 28495 | -2/Research | High security lockdown imminent 28535 | -2/Research | Lost 4 allies 28575 | -2/Research | High security lockdown engaged 28588 | -2/Research | Spotted Striker 28588 | -2/Research | Spotted Striker 28589 | -2/Research | Destroyed Striker 28597 | -2/Research | Destroyed Striker 28620 | -2/Research | Spotted Executioner 28620 | -2/Research | Spotted Striker 28624 | -2/Research | Destroyed Striker 28626 | -2/Research | Destroyed Executioner 28655 | -2/Research | Found Prototype Processor 28655 | -2/Research | Identified Exp. Targeting Computer 28667 | -2/Research | Destroyed 16 combat bots 28708 | -2/Research | Spotted Striker 28729 | -2/Research | Destroyed Striker 28757 | -2/Research | Destroyed 18 combat bots 28892 | -2/Research | Discovered new exit (range 18) 28991 | -2/Research | Discovered new exit (range 21) 29020 | -2/Research | Borebot progress halted 29089 | -2/Research | Build established: Scavenger-Tank 29134 | -2/Research | Spotted Executioner 29134 | -2/Research | Spotted Executioner 29134 | -2/Research | Spotted Executioner 29138 | -2/Research | Destroyed Executioner 29140 | -2/Research | Destroyed Executioner 29151 | -2/Research | Destroyed Executioner 29170 | -2/Research | Found Prototype Device 29170 | -2/Research | Identified Adv. Kinecellerator 29172 | -2/Research | Destroyed 7 combat bots 29192 | -2/Research | Spotted Executioner 29194 | -2/Research | Destroyed Executioner 29203 | -2/Research | Spotted Executioner 29208 | -2/Research | Destroyed Executioner 29243 | -2/Research | Destroyed 9 combat bots 29251 | -2/Research | Spotted Executioner 29251 | -2/Research | Spotted Executioner 29256 | -2/Research | Destroyed Executioner 29258 | -2/Research | Destroyed Executioner 29303 | -2/Research | Found Adv. Kinecellerator 29311 | -2/Research | Destroyed 9 combat bots 29350 | -2/Research | Borebot progress halted 29364 | -2/Research | Spotted Striker 29365 | -2/Research | Destroyed Striker 29400 | -2/Research | Spotted Striker 29404 | -2/Research | Destroyed Striker 29471 | -2/Research | Destroyed 27 combat bots 29479 | -2/Research | Spotted Striker 29480 | -2/Research | Destroyed Striker 29483 | -2/Research | Spotted Striker 29483 | -2/Research | Destroyed Striker 29502 | -2/Research | Spotted Striker 29502 | -2/Research | Destroyed Striker 29508 | -2/Research | Spotted Executioner 29510 | -2/Research | Destroyed Executioner 29510 | -2/Research | Spotted Striker 29513 | -2/Research | Destroyed Striker 29522 | -2/Research | Spotted Striker 29522 | -2/Research | Spotted Striker 29522 | -2/Research | Warped through subspace 29547 | -2/Research | Discovered new exit (range 23) 29555 | -2/Research | Destroyed 11 combat bots 29604 | -2/Research | Spotted Striker 29605 | -2/Research | Destroyed Striker 29646 | -2/Research | Spotted Investigator 29646 | -2/Research | Destroyed Investigator 29650 | -2/Research | Given Cave Seal Controls access code 29654 | -2/Research | Spotted Executioner 29655 | -2/Research | Spotted Executioner 29659 | -2/Research | Destroyed Executioner 29663 | -2/Research | Destroyed Executioner 29670 | -2/Research | Spotted Executioner 29676 | -2/Research | Spotted Executioner 29682 | -2/Research | Destroyed Executioner 29686 | -2/Research | Spotted Executioner 29697 | -2/Research | Spotted Striker 29702 | -2/Research | Destroyed Executioner 29703 | -2/Research | System corruption reached 10% 29708 | -2/Research | Spotted Striker 29712 | -2/Research | Spotted Executioner 29712 | -2/Research | Spotted Executioner 29717 | -2/Research | Allies destroyed Striker 29721 | -2/Research | Spotted Executioner 29727 | -2/Research | P-80 Master assimilated allied 6B-YQA(s) 29728 | -2/Research | Destroyed 37 combat bots 29736 | -2/Research | Spotted Striker 29736 | -2/Research | Spotted Striker 29737 | -2/Research | Discovered new exit (range 8) 29748 | -2/Research | Found Prototype Launcher 29748 | -2/Research | Identified Containment Facilitator 29749 | -2/Research | Lost 9 parts (1p3u5w) 29752 | -2/Research | Entered Testing 29762 | -2/Testing | Lost 13 allies 29828 | -2/Testing | Found Prototype Ballistic Gun 29828 | -2/Testing | Identified Hyp. Multirail 29868 | -2/Testing | Garrison activated, responded to threat 29874 | -2/Testing | Found Exp. Signal Interpreter 29901 | -2/Testing | Protovariant out of control (PG-7QLQAI2O6X) 29927 | -2/Testing | Scanned by Researcher 29927 | -2/Testing | Spotted Investigator 29970 | -2/Testing | Destroyed Investigator 30002 | -2/Testing | First assault squad dispatched 30017 | -2/Testing | Destroyed 8 combat bots 30019 | -2/Testing | Incoming assault squad redirected 30106 | -2/Testing | Incoming assault squad redirected 30116 | -2/Testing | High security lockdown imminent 30121 | -2/Testing | Discovered new exit (range 7) 30137 | -2/Testing | Destroyed 7 combat bots 30152 | -2/Testing | Spotted PX-PZZBX0ZCR4 30160 | -2/Testing | Destroyed PX-PZZBX0ZCR4 30181 | -2/Testing | Found Prototype Processor 30181 | -2/Testing | Identified Spectral Analyzer 30196 | -2/Testing | High security lockdown engaged 30314 | -2/Testing | Destroyed 18 combat bots 30329 | -2/Testing | Spotted Executioner 30329 | -2/Testing | Destroyed Executioner 30355 | -2/Testing | Spotted Executioner 30365 | -2/Testing | Destroyed Executioner 30385 | -2/Testing | Spotted Investigator 30391 | -2/Testing | Destroyed Investigator 30416 | -2/Testing | Destroyed 13 combat bots 30437 | -2/Testing | Found Exp. Core Analyzer 30439 | -2/Testing | Found Exp. Targeting Computer 30471 | -2/Testing | Spotted Executioner 30552 | -2/Testing | Destroyed Executioner 30602 | -2/Testing | Spotted Executioner 30604 | -2/Testing | Spotted Striker 30615 | -2/Testing | Destroyed Striker 30627 | -2/Testing | Destroyed Executioner 30664 | -2/Testing | Found Adv. Kinecellerator 30668 | -2/Testing | Destroyed 26 combat bots 30710 | -2/Testing | Spotted Executioner 30727 | -2/Testing | System corruption reached 30% 30734 | -2/Testing | Spotted Striker 30748 | -2/Testing | Garrison activated, responded to threat 30764 | -2/Testing | Core integrity fell below 50% 30773 | -2/Testing | Allies destroyed Striker 30812 | -2/Testing | Lost 4 parts (1p1n1u1w) 30823 | -2/Testing | Destroyed 7 combat bots 30835 | -2/Testing | Lost 5 allies 31005 | -2/Testing | Spotted Executioner 31013 | -2/Testing | Spotted Striker 31014 | -2/Testing | Destroyed Executioner 31026 | -2/Testing | Destroyed Striker 31038 | -2/Testing | Warped through subspace 31045 | -2/Testing | Sterilization system engaged 31045 | -2/Testing | Non-combat units ordered to evacuate 31050 | -2/Testing | Destroyed 12 combat bots 31062 | -2/Testing | Lost 6 parts (3p1u2w) 31145 | -2/Testing | Combat units ordered to evacuate 31264 | -2/Testing | Found Prototype Energy Cannon 31264 | -2/Testing | Identified Potential Cannon 31267 | -2/Testing | Found Prototype Energy Cannon 31267 | -2/Testing | Identified Imp. Potential Cannon 31337 | -2/Testing | Found Prototype Device 31337 | -2/Testing | Identified Exp. Shock Absorption System 31345 | -2/Testing | Ambient heat levels rising (+10) 31471 | -2/Testing | Found Prototype Launcher 31471 | -2/Testing | Identified Mni. Smartbomb Launcher 31495 | -2/Testing | Ambient heat levels rising (+10) 31568 | -2/Testing | Build established: Gunner 31645 | -2/Testing | Ambient heat levels rising (+10) 31673 | -2/Testing | Identified exit to Access 31676 | -2/Testing | Entered Access 31676 | -1/Access | Evolved 2 slots: Utility x2 31861 | -1/Access | Unchained authorized (BL-1NK) 31863 | -1/Access | Lost 3 allies 31926 | -1/Access | First assault squad dispatched 32001 | -1/Access | Spotted B-99 Colossus 32131 | -1/Access | Destroyed B-99 Colossus 32191 | -1/Access | Build established: Scavenger-Gunner 32191 | -1/Access | Destroyed 7 combat bots 32201 | -1/Access | Incoming assault squad redirected 32204 | -1/Access | Incoming assault squad redirected 32271 | -1/Access | Destroyed BL-1NK 32292 | -1/Access | Destroyed 7 combat bots 32343 | -1/Access | Spotted B-99 Colossus 32427 | -1/Access | High security lockdown imminent 32507 | -1/Access | High security lockdown engaged 32762 | -1/Access | Spotted Investigator 32812 | -1/Access | Destroyed Investigator 32827 | -1/Access | Spotted Executioner 32827 | -1/Access | Spotted Executioner 32828 | -1/Access | Destroyed 14 combat bots 32841 | -1/Access | Destroyed Executioner 32846 | -1/Access | Destroyed Executioner 32923 | -1/Access | Spotted Executioner 32923 | -1/Access | Spotted Striker 32928 | -1/Access | Allies destroyed Executioner 32929 | -1/Access | Spotted Executioner 32929 | -1/Access | Spotted Striker 32929 | -1/Access | Spotted Striker 32934 | -1/Access | Destroyed Executioner 32938 | -1/Access | Destroyed Striker 32942 | -1/Access | Allies destroyed Striker 32969 | -1/Access | Allies destroyed Striker 32972 | -1/Access | Spotted Striker 32980 | -1/Access | Destroyed Striker 32986 | -1/Access | Lost 4 parts (1p3w) 33019 | -1/Access | Destroyed 21 combat bots 33024 | -1/Access | Found Exp. Core Analyzer 33120 | -1/Access | Destroyed 9 combat bots 33148 | -1/Access | Spotted Executioner 33148 | -1/Access | Spotted Striker 33148 | -1/Access | Spotted Executioner 33149 | -1/Access | Destroyed Striker 33150 | -1/Access | Spotted Executioner 33150 | -1/Access | Spotted Striker 33155 | -1/Access | Spotted Executioner 33161 | -1/Access | Destroyed Striker 33164 | -1/Access | Destroyed Executioner 33164 | -1/Access | Destroyed Executioner 33165 | -1/Access | Destroyed Executioner 33173 | -1/Access | Destroyed Executioner 33189 | -1/Access | Spotted Striker 33189 | -1/Access | Spotted Striker 33189 | -1/Access | Spotted Striker 33196 | -1/Access | Destroyed 11 combat bots 33197 | -1/Access | Spotted Investigator 33208 | -1/Access | Destroyed Striker 33211 | -1/Access | Destroyed Investigator 33215 | -1/Access | Allies destroyed Striker 33219 | -1/Access | Destroyed Striker 33244 | -1/Access | Spotted Executioner 33244 | -1/Access | Spotted Striker 33246 | -1/Access | Destroyed Executioner 33254 | -1/Access | Destroyed Striker 33269 | -1/Access | Sterilization system engaged 33275 | -1/Access | Destroyed 16 combat bots 33278 | -1/Access | Found Exp. Core Analyzer 33295 | -1/Access | Spotted Executioner 33295 | -1/Access | Spotted Striker 33298 | -1/Access | Destroyed Executioner 33328 | -1/Access | Destroyed 7 combat bots 33332 | -1/Access | Spotted Striker 33332 | -1/Access | Spotted Executioner 33341 | -1/Access | Spotted Executioner 33348 | -1/Access | System corruption reached 10% 33353 | -1/Access | Allies destroyed Striker 33354 | -1/Access | Spotted Striker 33357 | -1/Access | Destroyed Executioner 33367 | -1/Access | Destroyed Executioner 33369 | -1/Access | Allies destroyed Striker 33371 | -1/Access | Allies destroyed Striker 33400 | -1/Access | Lost 9 parts (2p1n4u2w) 33407 | -1/Access | Destroyed 11 combat bots 33420 | -1/Access | Found Prototype Processor 33420 | -1/Access | Identified Exp. Targeting Computer 33490 | -1/Access | Spotted Investigator 33492 | -1/Access | Destroyed Investigator 33531 | -1/Access | Destroyed 13 combat bots 33569 | -1/Access | Ambient heat levels rising (+10) 33596 | -1/Access | Lost 3 parts (2u1w) 33598 | -1/Access | Spotted Striker 33598 | -1/Access | Spotted Executioner 33600 | -1/Access | Destroyed Executioner 33603 | -1/Access | Spotted Striker 33604 | -1/Access | Destroyed Striker 33605 | -1/Access | Destroyed Striker 33719 | -1/Access | Ambient heat levels rising (+10) 33754 | -1/Access | Build established: Scavenger-Mutant 33869 | -1/Access | Ambient heat levels rising (+10) 34019 | -1/Access | Ambient heat levels rising (+10) 34169 | -1/Access | Ambient heat levels rising (+10) 34274 | -1/Access | Build established: Scavenger-Gunner 34319 | -1/Access | Ambient heat levels rising (+10) 34469 | -1/Access | Ambient heat levels rising (+10) 34534 | -1/Access | Found Prototype Launcher 34534 | -1/Access | Identified Com. Tesla Bomb Launcher 34537 | -1/Access | Found Com. Tesla Bomb Launcher 34568 | -1/Access | Found Unknown Device 34619 | -1/Access | Ambient heat levels rising (+10) 34769 | -1/Access | Ambient heat levels rising (+10) 34919 | -1/Access | Ambient heat levels rising (+10) 35069 | -1/Access | Ambient heat levels rising (+10) 35219 | -1/Access | Ambient heat levels rising (+10) 35369 | -1/Access | Ambient heat levels rising (+10) 35401 | -1/Access | Found Prototype Device 35402 | -1/Access | Identified Exp. Sensor Array 35519 | -1/Access | Ambient heat levels rising (+10) 35669 | -1/Access | Ambient heat levels rising (+10) 35819 | -1/Access | Ambient heat levels rising (+10) 35969 | -1/Access | Ambient heat levels rising (+10) 36119 | -1/Access | Ambient heat levels rising (+10) 36269 | -1/Access | Ambient heat levels rising (+10) 36419 | -1/Access | Ambient heat levels rising (+10) 36569 | -1/Access | Ambient heat levels rising (+10) 36663 | -1/Access | Found Imp. Powered Armor 36719 | -1/Access | Ambient heat levels rising (+10) 36869 | -1/Access | Ambient heat levels rising (+10) 37019 | -1/Access | Ambient heat levels rising (+10) 37035 | -1/Access | Energy Cycler disabled 37169 | -1/Access | Ambient heat levels rising (+10) 37286 | -1/Access | Discovered new exit (range 3) 37290 | -1/Access | Entered Command 37443 | -1/Command | High security lockdown imminent 37493 | -1/Command | Disengaged cave seal 37493 | -1/Command | Derelicts emerged from the dark tunnel 37493 | -1/Command | Welcomed Warlord to Command 37523 | -1/Command | High security lockdown engaged 37558 | -1/Command | Lost 3 allies 37613 | -1/Command | Lost 4 allies 37634 | -1/Command | Spotted Executioner 37646 | -1/Command | Spotted XJ-JNL(L) 37654 | -1/Command | Destroyed XJ-JNL(L) 37684 | -1/Command | P-80 Master assimilated allied 98-7FN(l) 37734 | -1/Command | Destroyed 12 combat bots 37737 | -1/Command | Lost 12 allies 37750 | -1/Command | Spotted Investigator 37764 | -1/Command | Destroyed Investigator 37788 | -1/Command | Destroyed 15 combat bots 37928 | -1/Command | Spotted Striker 37930 | -1/Command | Spotted Executioner 37932 | -1/Command | Spotted Executioner 37933 | -1/Command | Destroyed Executioner 37934 | -1/Command | Destroyed Executioner 37937 | -1/Command | Destroyed Striker 37957 | -1/Command | Spotted Striker 37957 | -1/Command | P-80 Master assimilated allied 2O-8I6(g) 37962 | -1/Command | Lost 4 allies 37986 | -1/Command | Spotted B-99 Colossus 38002 | -1/Command | Destroyed 10 combat bots 38003 | -1/Command | Destroyed B-99 Colossus 38013 | -1/Command | Spotted Striker 38013 | -1/Command | Spotted Striker 38019 | -1/Command | Destroyed Striker 38020 | -1/Command | Destroyed Striker 38045 | -1/Command | Spotted Executioner 38046 | -1/Command | Spotted Executioner 38057 | -1/Command | Destroyed Executioner 38057 | -1/Command | Spotted Striker 38057 | -1/Command | Spotted Executioner 38058 | -1/Command | Destroyed Executioner 38058 | -1/Command | Destroyed Executioner 38065 | -1/Command | Destroyed Striker 38073 | -1/Command | Spotted Striker 38073 | -1/Command | Spotted Striker 38076 | -1/Command | Warlord destroyed during the assault 38078 | -1/Command | Destroyed Striker 38079 | -1/Command | Destroyed Striker 38100 | -1/Command | Destroyed 15 combat bots 38145 | -1/Command | Spotted Executioner 38162 | -1/Command | Destroyed Executioner 38189 | -1/Command | Destroyed 12 combat bots 38388 | -1/Command | Spotted Striker 38388 | -1/Command | Spotted Striker 38388 | -1/Command | Spotted Executioner 38388 | -1/Command | Spotted Striker 38388 | -1/Command | Spotted Striker 38400 | -1/Command | Destroyed Striker 38401 | -1/Command | Destroyed Striker 38401 | -1/Command | Destroyed Striker 38401 | -1/Command | Spotted Striker 38401 | -1/Command | Spotted Striker 38402 | -1/Command | Destroyed Striker 38403 | -1/Command | Spotted Striker 38415 | -1/Command | Core integrity fell below 50% 38420 | -1/Command | Spotted Striker 38421 | -1/Command | Spotted Striker 38432 | -1/Command | Destroyed 19 combat bots 38434 | -1/Command | Allies destroyed Striker 38435 | -1/Command | Allies destroyed Striker 38460 | -1/Command | Allies destroyed Striker 38484 | -1/Command | Lost 9 parts (3p2u4w) 38484 | -1/Command | Allies destroyed Striker 38486 | -1/Command | Lost 3 allies 38502 | -1/Command | System corruption reached 30% 38515 | -1/Command | Destroyed Executioner 38533 | -1/Command | Spotted Executioner 38542 | -1/Command | Destroyed Executioner 38563 | -1/Command | Destroyed 10 combat bots 38725 | -1/Command | Spotted Executioner 38737 | -1/Command | Destroyed Executioner 38772 | -1/Command | Found Exp. Core Analyzer 38784 | -1/Command | Found Exp. Targeting Computer 38789 | -1/Command | Destroyed 15 combat bots 39156 | -1/Command | Build established: Scavenger-Mutant 39350 | -1/Command | Spotted M Guard 39354 | -1/Command | Spotted M Guard 39354 | -1/Command | Spotted Combat Programmer 39360 | -1/Command | Spotted Combat Programmer 39386 | -1/Command | Destroyed Combat Programmer 39401 | -1/Command | Destroyed Combat Programmer 39412 | -1/Command | Destroyed M Guard 39421 | -1/Command | Destroyed M Guard 39421 | -1/Command | All MAIN.C guards destroyed 39428 | -1/Command | Found Corrupted Prototype Device 39430 | -1/Command | Found Corrupted Prototype Energy Cannon 39445 | -1/Command | Found Corrupted Prototype Protection 39445 | -1/Command | Identified Hvy. Regenerative Plating 39453 | -1/Command | Found Corrupted Prototype Reactor 39458 | -1/Command | Found Corrupted Thermal Barrier 39713 | -1/Command | Build established: Scavenger-Gunner 40040 | -1/Command | Identified Cld. Nova Cannon 40085 | -1/Command | Met MAIN.C 40116 | -1/Command | Destroyed MAIN.C Shell 40117 | -1/Command | 0b10 Conduit disabled 40119 | -1/Command | MAIN.C activated Command garrisons 40174 | -1/Command | Core integrity fell below 20% 40174 | -1/Command | Destroyed MAIN.C 40189 | -1/Command | Spotted B-99 Colossus 40191 | -1/Command | Identified Zero-point Reactor 40191 | -1/Command | Identified AEGIS Remote Shield 40191 | -1/Command | Discovered new exit (range 31) 40191 | -1/Command | Discovered new exit (range 111) 40191 | -1/Command | Extracted map data and part IDs from MAIN.C's data core 40211 | -1/Command | Destroyed B-99 Colossus 40270 | *** | Establishing 0b11! Last Messages --------------- 40211_ Impact Drone retrieval failed, bay integrity insufficient for repairs. 40214_ Acquired Exp. Energy Well. 40215_ Acquired 5 matter. 40217_ Acquired 7 matter. 40218_ |LZ0=5AXVCM:6VHN60CLA 40219_ W-44 Eye destroyed. 40220_ Acquired 1 matter. 40222_ W-44 Eye suffers critical hit (Smash). 40222_ Destroyed Adv. Visual Processing Unit. 40222_ Destroyed Antigrav System. 40222_ W-44 Eye system corrupted by crushing effect. 40222_ W-44 Eye knocked back. 40223_ W-44 Eye system terminally corrupted. 40230_ Acquired 4 matter. 40232_ Acquired 6 matter. 40233_ /CIVURJ:2LYP